DepartmentFamily,Entity,Date,ExpenseType,ExpenseArea,Supplier,Transaction Number,Amount,VAT Registration Number
BEIS,The Insolvency Service,01/09/2020,ICT,Digital Technology Services,Telesis Limited,300023101,480.00,221442453
BEIS,The Insolvency Service,01/09/2020,Estates - Property,Finance & Commercial,Middlesbrough Council,300023162,344.70,734213854
BEIS,The Insolvency Service,01/09/2020,ICT,Digital Technology Services,Thales Uk Ltd. (L&J),300022940,16078.00,198 9556 80
BEIS,The Insolvency Service,01/09/2020,ICT,Digital Technology Services,Thales Uk Ltd. (L&J),300022945,24204.00,198 9556 80
BEIS,The Insolvency Service,01/09/2020,ICT,Digital Technology Services,Experian Qas Ltd,300022766,9783.60,887 1335 93
BEIS,The Insolvency Service,01/09/2020,HR,People & Capability,Cabinet Office,300023104,54.00,
BEIS,The Insolvency Service,01/09/2020,HR,People & Capability,Cabinet Office,300023104,276.00,
BEIS,The Insolvency Service,01/09/2020,Staff Costs - Non-Perms,Strategy & Change,April Strategy LLP,300023093,43200.00,
BEIS,The Insolvency Service,01/09/2020,ICT,Strategy & Change,Ricoh Uk Limited,300022984,8.40,
BEIS,The Insolvency Service,01/09/2020,ICT,Strategy & Change,Ricoh Uk Limited,300022985,8.40,
BEIS,The Insolvency Service,01/09/2020,ICT,Strategy & Change,Ricoh Uk Limited,300022986,8.40,
BEIS,The Insolvency Service,01/09/2020,ICT,Strategy & Change,Ricoh Uk Limited,300022987,8.40,
BEIS,The Insolvency Service,01/09/2020,ICT,Strategy & Change,Ricoh Uk Limited,300022988,8.40,
BEIS,The Insolvency Service,01/09/2020,ICT,Strategy & Change,Ricoh Uk Limited,300022992,8.40,
BEIS,The Insolvency Service,01/09/2020,ICT,Strategy & Change,Ricoh Uk Limited,300022993,8.40,
BEIS,The Insolvency Service,01/09/2020,ICT,Strategy & Change,Ricoh Uk Limited,300022994,8.40,
BEIS,The Insolvency Service,01/09/2020,ICT,Strategy & Change,Ricoh Uk Limited,300022995,8.40,
BEIS,The Insolvency Service,01/09/2020,ICT,Strategy & Change,Ricoh Uk Limited,300022996,8.40,
BEIS,The Insolvency Service,01/09/2020,ICT,Strategy & Change,Ricoh Uk Limited,300022997,8.40,
BEIS,The Insolvency Service,01/09/2020,ICT,Strategy & Change,Ricoh Uk Limited,300022998,8.40,
BEIS,The Insolvency Service,01/09/2020,ICT,Strategy & Change,Ricoh Uk Limited,300022999,8.40,
BEIS,The Insolvency Service,01/09/2020,ICT,Strategy & Change,Ricoh Uk Limited,300023000,8.40,
BEIS,The Insolvency Service,01/09/2020,ICT,Strategy & Change,Ricoh Uk Limited,300023001,8.40,
BEIS,The Insolvency Service,01/09/2020,ICT,Strategy & Change,Ricoh Uk Limited,300023002,12.00,
BEIS,The Insolvency Service,01/09/2020,ICT,Strategy & Change,Ricoh Uk Limited,300023003,12.00,
BEIS,The Insolvency Service,01/09/2020,ICT,Strategy & Change,Ricoh Uk Limited,300023004,12.00,
BEIS,The Insolvency Service,01/09/2020,ICT,Strategy & Change,Ricoh Uk Limited,300023005,12.00,
BEIS,The Insolvency Service,01/09/2020,ICT,Strategy & Change,Ricoh Uk Limited,300023006,12.00,
BEIS,The Insolvency Service,01/09/2020,ICT,Strategy & Change,Ricoh Uk Limited,300023007,12.00,
BEIS,The Insolvency Service,01/09/2020,ICT,Strategy & Change,Ricoh Uk Limited,300023008,12.00,
BEIS,The Insolvency Service,01/09/2020,ICT,Strategy & Change,Ricoh Uk Limited,300023009,12.00,
BEIS,The Insolvency Service,01/09/2020,ICT,Strategy & Change,Ricoh Uk Limited,300023010,12.00,
BEIS,The Insolvency Service,01/09/2020,ICT,Strategy & Change,Ricoh Uk Limited,300023011,12.00,
BEIS,The Insolvency Service,01/09/2020,ICT,Strategy & Change,Ricoh Uk Limited,300023012,12.00,
BEIS,The Insolvency Service,01/09/2020,ICT,Strategy & Change,Ricoh Uk Limited,300023013,20.40,
BEIS,The Insolvency Service,01/09/2020,ICT,Strategy & Change,Ricoh Uk Limited,300023014,20.40,
BEIS,The Insolvency Service,01/09/2020,ICT,Strategy & Change,Ricoh Uk Limited,300023015,20.40,
BEIS,The Insolvency Service,01/09/2020,ICT,Strategy & Change,Ricoh Uk Limited,300023016,20.40,
BEIS,The Insolvency Service,01/09/2020,ICT,Strategy & Change,Ricoh Uk Limited,300023017,20.40,
BEIS,The Insolvency Service,01/09/2020,ICT,Strategy & Change,Ricoh Uk Limited,300023018,20.40,
BEIS,The Insolvency Service,01/09/2020,ICT,Strategy & Change,Ricoh Uk Limited,300023019,20.40,
BEIS,The Insolvency Service,01/09/2020,ICT,Strategy & Change,Ricoh Uk Limited,300023020,20.40,
BEIS,The Insolvency Service,01/09/2020,ICT,Strategy & Change,Ricoh Uk Limited,300023021,20.40,
BEIS,The Insolvency Service,01/09/2020,ICT,Strategy & Change,Ricoh Uk Limited,300023022,20.40,
BEIS,The Insolvency Service,01/09/2020,ICT,Strategy & Change,Ricoh Uk Limited,300023023,12.00,
BEIS,The Insolvency Service,01/09/2020,ICT,Strategy & Change,Ricoh Uk Limited,300023024,12.00,
BEIS,The Insolvency Service,01/09/2020,ICT,Strategy & Change,Ricoh Uk Limited,300023025,12.00,
BEIS,The Insolvency Service,01/09/2020,ICT,Strategy & Change,Ricoh Uk Limited,300023026,12.00,
BEIS,The Insolvency Service,01/09/2020,ICT,Strategy & Change,Ricoh Uk Limited,300023027,12.00,
BEIS,The Insolvency Service,01/09/2020,ICT,Strategy & Change,Ricoh Uk Limited,300023028,12.00,
BEIS,The Insolvency Service,01/09/2020,ICT,Strategy & Change,Ricoh Uk Limited,300023029,12.00,
BEIS,The Insolvency Service,01/09/2020,ICT,Strategy & Change,Ricoh Uk Limited,300023030,12.00,
BEIS,The Insolvency Service,01/09/2020,ICT,Strategy & Change,Ricoh Uk Limited,300023031,12.00,
BEIS,The Insolvency Service,01/09/2020,ICT,Strategy & Change,Ricoh Uk Limited,300023032,12.00,
BEIS,The Insolvency Service,01/09/2020,ICT,Strategy & Change,Ricoh Uk Limited,300023033,12.00,
BEIS,The Insolvency Service,01/09/2020,ICT,Strategy & Change,Ricoh Uk Limited,300023034,12.00,
BEIS,The Insolvency Service,01/09/2020,ICT,Strategy & Change,Ricoh Uk Limited,300023035,12.00,
BEIS,The Insolvency Service,01/09/2020,ICT,Strategy & Change,Ricoh Uk Limited,300023036,12.00,
BEIS,The Insolvency Service,01/09/2020,ICT,Strategy & Change,Ricoh Uk Limited,300023037,12.00,
BEIS,The Insolvency Service,01/09/2020,ICT,Strategy & Change,Ricoh Uk Limited,300023038,12.00,
BEIS,The Insolvency Service,01/09/2020,ICT,Strategy & Change,Ricoh Uk Limited,300023039,12.00,
BEIS,The Insolvency Service,01/09/2020,ICT,Strategy & Change,Ricoh Uk Limited,300023040,12.00,
BEIS,The Insolvency Service,01/09/2020,ICT,Strategy & Change,Ricoh Uk Limited,300023041,12.00,
BEIS,The Insolvency Service,01/09/2020,ICT,Strategy & Change,Ricoh Uk Limited,300023042,12.00,
BEIS,The Insolvency Service,01/09/2020,ICT,Strategy & Change,Ricoh Uk Limited,300023043,12.00,
BEIS,The Insolvency Service,01/09/2020,ICT,Strategy & Change,Ricoh Uk Limited,300023044,12.00,
BEIS,The Insolvency Service,01/09/2020,ICT,Strategy & Change,Ricoh Uk Limited,300023045,12.00,
BEIS,The Insolvency Service,01/09/2020,ICT,Strategy & Change,Ricoh Uk Limited,300023046,12.00,
BEIS,The Insolvency Service,01/09/2020,ICT,Strategy & Change,Ricoh Uk Limited,300023047,12.00,
BEIS,The Insolvency Service,01/09/2020,ICT,Strategy & Change,Ricoh Uk Limited,300023048,12.00,
BEIS,The Insolvency Service,01/09/2020,ICT,Strategy & Change,Ricoh Uk Limited,300023049,12.00,
BEIS,The Insolvency Service,01/09/2020,ICT,Strategy & Change,Ricoh Uk Limited,300023050,12.00,
BEIS,The Insolvency Service,01/09/2020,ICT,Strategy & Change,Ricoh Uk Limited,300023051,12.00,
BEIS,The Insolvency Service,01/09/2020,ICT,Strategy & Change,Ricoh Uk Limited,300023052,12.00,
BEIS,The Insolvency Service,01/09/2020,ICT,Strategy & Change,Ricoh Uk Limited,300023053,12.00,
BEIS,The Insolvency Service,01/09/2020,ICT,Strategy & Change,Ricoh Uk Limited,300023054,20.40,
BEIS,The Insolvency Service,01/09/2020,ICT,Strategy & Change,Ricoh Uk Limited,300023055,20.40,
BEIS,The Insolvency Service,01/09/2020,ICT,Strategy & Change,Ricoh Uk Limited,300023056,20.40,
BEIS,The Insolvency Service,01/09/2020,ICT,Strategy & Change,Ricoh Uk Limited,300023057,12.00,
BEIS,The Insolvency Service,01/09/2020,ICT,Strategy & Change,Ricoh Uk Limited,300023058,12.00,
BEIS,The Insolvency Service,01/09/2020,ICT,Strategy & Change,Ricoh Uk Limited,300023059,20.40,
BEIS,The Insolvency Service,01/09/2020,ICT,Strategy & Change,Ricoh Uk Limited,300023060,12.00,
BEIS,The Insolvency Service,01/09/2020,ICT,Strategy & Change,Ricoh Uk Limited,300023061,12.00,
BEIS,The Insolvency Service,01/09/2020,ICT,Strategy & Change,Ricoh Uk Limited,300023062,8.40,
BEIS,The Insolvency Service,01/09/2020,ICT,Strategy & Change,Ricoh Uk Limited,300023063,8.40,
BEIS,The Insolvency Service,01/09/2020,ICT,Strategy & Change,Ricoh Uk Limited,300023064,8.40,
BEIS,The Insolvency Service,01/09/2020,ICT,Strategy & Change,Ricoh Uk Limited,300023065,8.40,
BEIS,The Insolvency Service,01/09/2020,ICT,Strategy & Change,Ricoh Uk Limited,300023066,8.40,
BEIS,The Insolvency Service,01/09/2020,ICT,Strategy & Change,Ricoh Uk Limited,300023067,8.40,
BEIS,The Insolvency Service,01/09/2020,ICT,Strategy & Change,Ricoh Uk Limited,300023068,8.40,
BEIS,The Insolvency Service,01/09/2020,ICT,Strategy & Change,Ricoh Uk Limited,300023069,8.40,
BEIS,The Insolvency Service,01/09/2020,ICT,Strategy & Change,Ricoh Uk Limited,300023070,8.40,
BEIS,The Insolvency Service,01/09/2020,ICT,Strategy & Change,Ricoh Uk Limited,300023071,8.40,
BEIS,The Insolvency Service,01/09/2020,ICT,Strategy & Change,Ricoh Uk Limited,300023073,8.40,
BEIS,The Insolvency Service,01/09/2020,ICT,Strategy & Change,Ricoh Uk Limited,300023074,8.40,
BEIS,The Insolvency Service,01/09/2020,ICT,Strategy & Change,Ricoh Uk Limited,300023075,8.40,
BEIS,The Insolvency Service,01/09/2020,ICT,Strategy & Change,Ricoh Uk Limited,300023076,8.40,
BEIS,The Insolvency Service,01/09/2020,ICT,Strategy & Change,Ricoh Uk Limited,300023077,8.40,
BEIS,The Insolvency Service,01/09/2020,ICT,Strategy & Change,Ricoh Uk Limited,300023078,8.40,
BEIS,The Insolvency Service,01/09/2020,ICT,Strategy & Change,Ricoh Uk Limited,300023079,8.40,
BEIS,The Insolvency Service,01/09/2020,ICT,Strategy & Change,Ricoh Uk Limited,300023080,8.40,
BEIS,The Insolvency Service,01/09/2020,ICT,Strategy & Change,Ricoh Uk Limited,300023081,8.40,
BEIS,The Insolvency Service,01/09/2020,ICT,Strategy & Change,Ricoh Uk Limited,300023082,8.40,
BEIS,The Insolvency Service,01/09/2020,ICT,Strategy & Change,Ricoh Uk Limited,300023083,288.00,
BEIS,The Insolvency Service,01/09/2020,ICT,Strategy & Change,Ricoh Uk Limited,300023084,96.00,
BEIS,The Insolvency Service,01/09/2020,ICT,Strategy & Change,Ricoh Uk Limited,300023085,192.00,
BEIS,The Insolvency Service,01/09/2020,ICT,Strategy & Change,Ricoh Uk Limited,300023086,384.00,
BEIS,The Insolvency Service,01/09/2020,ICT,Strategy & Change,Ricoh Uk Limited,300023087,464.40,
BEIS,The Insolvency Service,01/09/2020,ICT,Strategy & Change,Ricoh Uk Limited,300023088,226.20,
BEIS,The Insolvency Service,01/09/2020,ICT,Strategy & Change,Ricoh Uk Limited,300023089,226.20,
BEIS,The Insolvency Service,01/09/2020,ICT,Strategy & Change,Ricoh Uk Limited,300023090,576.00,
BEIS,The Insolvency Service,01/09/2020,ICT,Strategy & Change,Ricoh Uk Limited,300023094,96.00,
BEIS,The Insolvency Service,01/09/2020,Travel & Subsistence,Official Receiver Services,Staff Payment,900016048,115.00,
BEIS,The Insolvency Service,01/09/2020,Travel & Subsistence,Official Receiver Services,Staff Payment,900016088,0.65,
BEIS,The Insolvency Service,01/09/2020,Travel & Subsistence,Official Receiver Services,Staff Payment,900016088,0.65,
BEIS,The Insolvency Service,01/09/2020,Travel & Subsistence,Official Receiver Services,Staff Payment,900016088,0.65,
BEIS,The Insolvency Service,01/09/2020,Travel & Subsistence,Official Receiver Services,Staff Payment,900016088,0.65,
BEIS,The Insolvency Service,01/09/2020,Travel & Subsistence,Official Receiver Services,Staff Payment,900016088,0.64,
BEIS,The Insolvency Service,01/09/2020,Travel & Subsistence,Official Receiver Services,Staff Payment,900016088,0.88,
BEIS,The Insolvency Service,01/09/2020,Travel & Subsistence,Official Receiver Services,Staff Payment,900016088,1.68,
BEIS,The Insolvency Service,01/09/2020,Travel & Subsistence,Official Receiver Services,Staff Payment,900016088,0.65,
BEIS,The Insolvency Service,01/09/2020,Travel & Subsistence,Official Receiver Services,Staff Payment,900016088,0.65,
BEIS,The Insolvency Service,01/09/2020,Travel & Subsistence,Official Receiver Services,Staff Payment,900016088,0.65,
BEIS,The Insolvency Service,01/09/2020,Travel & Subsistence,Official Receiver Services,Staff Payment,900016090,0.88,
BEIS,The Insolvency Service,01/09/2020,Travel & Subsistence,Official Receiver Services,Staff Payment,900016090,0.65,
BEIS,The Insolvency Service,01/09/2020,Travel & Subsistence,Official Receiver Services,Staff Payment,900016089,8.10,
BEIS,The Insolvency Service,01/09/2020,Travel & Subsistence,Official Receiver Services,Staff Payment,900016089,3.00,
BEIS,The Insolvency Service,01/09/2020,Travel & Subsistence,Official Receiver Services,Staff Payment,900016083,76.05,
BEIS,The Insolvency Service,01/09/2020,Travel & Subsistence,Official Receiver Services,Staff Payment,900016024,92.40,
BEIS,The Insolvency Service,01/09/2020,Travel & Subsistence,Investigations & Enforcement Services,Staff Payment,900016006,55.80,
BEIS,The Insolvency Service,01/09/2020,Travel & Subsistence,Investigations & Enforcement Services,Staff Payment,900016006,3.60,
BEIS,The Insolvency Service,01/09/2020,Travel & Subsistence,Investigations & Enforcement Services,Staff Payment,900016006,12.15,
BEIS,The Insolvency Service,01/09/2020,Travel & Subsistence,Investigations & Enforcement Services,Staff Payment,900016006,55.80,
BEIS,The Insolvency Service,01/09/2020,Travel & Subsistence,Investigations & Enforcement Services,Staff Payment,900016006,55.80,
BEIS,The Insolvency Service,01/09/2020,Travel & Subsistence,Investigations & Enforcement Services,Staff Payment,900016091,90.90,
BEIS,The Insolvency Service,01/09/2020,Travel & Subsistence,Investigations & Enforcement Services,Staff Payment,900016095,1.50,
BEIS,The Insolvency Service,01/09/2020,Travel & Subsistence,Investigations & Enforcement Services,Staff Payment,900016095,50.40,
BEIS,The Insolvency Service,01/09/2020,Travel & Subsistence,Investigations & Enforcement Services,Staff Payment,900016095,3.85,
BEIS,The Insolvency Service,02/09/2020,Estates - Property,Finance & Commercial,Allied Publicity Services (Manchester) Ltd T/A Aps Group,300023182,10414.06,146494152
BEIS,The Insolvency Service,02/09/2020,Estates - Property,Finance & Commercial,Allied Publicity Services (Manchester) Ltd T/A Aps Group,300023183,12758.27,146494152
BEIS,The Insolvency Service,02/09/2020,Staff Costs - Non-Perms,Strategy & Change,Netcompany UK Ltd,300023098,44074.80,
BEIS,The Insolvency Service,02/09/2020,Staff Costs - Non-Perms,Strategy & Change,Netcompany UK Ltd,300023099,16538.40,
BEIS,The Insolvency Service,02/09/2020,Other Costs,Official Receiver Services,The Stationery Office Ltd,300023095,168.00,
BEIS,The Insolvency Service,02/09/2020,Other Costs,Official Receiver Services,Royal Mail,300023159,2592.00,
BEIS,The Insolvency Service,02/09/2020,Travel & Subsistence,Finance & Commercial,Staff Payment,900016094,110.00,
BEIS,The Insolvency Service,03/09/2020,Estates - Property,Finance & Commercial,Avison Young formerly GVA (Manchester),300023196,5025.60,894545868
BEIS,The Insolvency Service,03/09/2020,Estates - Property,Finance & Commercial,Avison Young formerly GVA (Manchester),300023197,218721.90,894545868
BEIS,The Insolvency Service,03/09/2020,ICT,Digital Technology Services,Advanced 365 Limited,300022618,178204.61,927547983
BEIS,The Insolvency Service,03/09/2020,Staff Costs - Non-Perms,Finance & Commercial,ALEXANDER MANN SOLUTIONS,300023160,39688.28,7444926120
BEIS,The Insolvency Service,03/09/2020,Staff Costs - Non-Perms,Finance & Commercial,ALEXANDER MANN SOLUTIONS,300023161,-1145.16,7444926120
BEIS,The Insolvency Service,03/09/2020,Off-Site Storage,Official Receiver Services,Ukcloud Ltd,300023191,16815.50,172 647 982
BEIS,The Insolvency Service,03/09/2020,Estates - Property,Finance & Commercial,Avison Young formerly GVA (Croydon),300023202,91003.80,657 7195 90
BEIS,The Insolvency Service,03/09/2020,Other Costs,Legal Services Division,Companies House,300023200,4.00,
BEIS,The Insolvency Service,03/09/2020,Investigation & Enforcement,Investigations & Enforcement Services,Md5 Ltd,300022918,4560.00,
BEIS,The Insolvency Service,03/09/2020,Investigation & Enforcement,Investigations & Enforcement Services,Md5 Ltd,300023102,1050.00,
BEIS,The Insolvency Service,03/09/2020,Travel & Subsistence,Official Receiver Services,Staff Payment,900016100,25.00,
BEIS,The Insolvency Service,03/09/2020,Travel & Subsistence,Official Receiver Services,Staff Payment,900016104,4.70,
BEIS,The Insolvency Service,03/09/2020,Travel & Subsistence,Official Receiver Services,Staff Payment,900016104,2.45,
BEIS,The Insolvency Service,03/09/2020,Travel & Subsistence,Investigations & Enforcement Services,Staff Payment,900016029,6.30,
BEIS,The Insolvency Service,03/09/2020,Travel & Subsistence,Investigations & Enforcement Services,Staff Payment,900016041,6.70,
BEIS,The Insolvency Service,03/09/2020,Other Costs,Business Service Division,SUNDRY SUPPLIER,300023174,100.00,
BEIS,The Insolvency Service,04/09/2020,Legal - Costs of Criminal Prosecutions and Advice,Legal Services Division,Allied Publicity Services (Manchester) Ltd T/A Aps Group,300023184,159.77,146494152
BEIS,The Insolvency Service,04/09/2020,Legal - Costs of Criminal Prosecutions and Advice,Legal Services Division,Allied Publicity Services (Manchester) Ltd T/A Aps Group,300023184,3298.01,146494152
BEIS,The Insolvency Service,04/09/2020,ICT,Business Service Division,Syntec Ltd,300023201,40.79,264618586
BEIS,The Insolvency Service,04/09/2020,Staff Costs - Non-Perms,Finance & Commercial,Pertemps Recruitment Partnership Limited,300023242,564.48,844278800
BEIS,The Insolvency Service,04/09/2020,Estates - Property,Finance & Commercial,Prydis Support Ltd,300023238,1368.43,974841283
BEIS,The Insolvency Service,04/09/2020,Off-Site Storage,Official Receiver Services,Ukcloud Ltd,300023192,19000.00,172 647 982
BEIS,The Insolvency Service,04/09/2020,Staff Costs - Non-Perms,Strategy & Change,Thales Uk Ltd. (L&J),300022944,10626.00,198 9556 80
BEIS,The Insolvency Service,04/09/2020,Off-Site Storage,Business Service Division,Iron Mountain (Uk) Ltd,300023100,34151.11,607 9375 16
BEIS,The Insolvency Service,04/09/2020,Training,Finance & Commercial,Capita Business Services Ltd,300022889,104.54,618 1841 40
BEIS,The Insolvency Service,04/09/2020,Training,People & Capability,Capita Business Services Ltd,300022933,5742.62,618 1841 40
BEIS,The Insolvency Service,04/09/2020,Legal - Costs of Recovering Civil Costs Awarded,Legal Services Division,Gowling Wragge Lawrence Graham  & Co,300023232,9886.40,858 698 838
BEIS,The Insolvency Service,04/09/2020,Legal - Costs of Recovering Civil Costs Awarded,Legal Services Division,Shepherd & Wedderburn Ws (English Cases),300023235,3643.20,890 5593 86
BEIS,The Insolvency Service,04/09/2020,Legal - Costs of Civil Litigation Winding Up,Investigations & Enforcement Services,Shepherd & Wedderburn Ws (English Cases),300023239,2526.70,890 5593 86
BEIS,The Insolvency Service,04/09/2020,"Printing, Stationary & Postage",Business Service Division,City Sprint Uk Ltd,300022967,50.82,997 3273 64
BEIS,The Insolvency Service,04/09/2020,Legal - Costs of Recovering Civil Costs Awarded,Legal Services Division,Shepherd & Wedderburn Ws (Scottish Cases),300023236,194.63,
BEIS,The Insolvency Service,04/09/2020,ICT,Digital Technology Services,Ibm Uk Ltd,300023163,5117.04,
BEIS,The Insolvency Service,04/09/2020,Legal - Costs of Civil Litigation Disqualifications,Legal Services Division,Tlt Llp,300023223,2500.00,
BEIS,The Insolvency Service,04/09/2020,"Printing, Stationary & Postage",Business Service Division,Quadient UK Limited,300023175,2985.00,
BEIS,The Insolvency Service,04/09/2020,Staff Costs - Non-Perms,Strategy & Change,Ricoh Uk Limited,300023249,394.34,
BEIS,The Insolvency Service,04/09/2020,Travel & Subsistence,Business Service Division,Staff Payment,900016106,6.70,
BEIS,The Insolvency Service,04/09/2020,Travel & Subsistence,Official Receiver Services,Staff Payment,900016108,0.88,
BEIS,The Insolvency Service,04/09/2020,Travel & Subsistence,Investigations & Enforcement Services,Staff Payment,900016111,11.25,
BEIS,The Insolvency Service,04/09/2020,Travel & Subsistence,Investigations & Enforcement Services,Staff Payment,900016111,31.50,
BEIS,The Insolvency Service,04/09/2020,Travel & Subsistence,Investigations & Enforcement Services,Staff Payment,900016111,10.83,
BEIS,The Insolvency Service,04/09/2020,Travel & Subsistence,Investigations & Enforcement Services,Staff Payment,900016111,8.80,
BEIS,The Insolvency Service,04/09/2020,Travel & Subsistence,Investigations & Enforcement Services,Staff Payment,900016111,4.50,
BEIS,The Insolvency Service,04/09/2020,Travel & Subsistence,Investigations & Enforcement Services,Staff Payment,900016111,17.70,
BEIS,The Insolvency Service,04/09/2020,Legal - Costs of Civil Litigation Disqualifications,Legal Services Division,SUNDRY SUPPLIER,300023097,1584.00,
BEIS,The Insolvency Service,04/09/2020,Other Costs,Business Service Division,SUNDRY SUPPLIER,300023224,200.00,
BEIS,The Insolvency Service,04/09/2020,Legal - Costs of Civil Litigation Disqualifications,Legal Services Division,SUNDRY SUPPLIER,300023257,-1584.00,
BEIS,The Insolvency Service,07/09/2020,Legal - Outsourced Investigation,Investigations & Enforcement Services,Mills & Reeve LLP,300023288,3319.70,104834588
BEIS,The Insolvency Service,07/09/2020,ICT,Digital Technology Services,Daisy Corporate Services Trading Limited,300022687,46851.00,722471355
BEIS,The Insolvency Service,07/09/2020,ICT,Digital Technology Services,Insight Direct (UK) Ltd,300022814,69.05,746075129
BEIS,The Insolvency Service,07/09/2020,ICT,Digital Technology Services,Insight Direct (UK) Ltd,300022815,725.96,746075129
BEIS,The Insolvency Service,07/09/2020,ICT,Digital Technology Services,Insight Direct (UK) Ltd,300022816,725.96,746075129
BEIS,The Insolvency Service,07/09/2020,ICT,Digital Technology Services,Insight Direct (UK) Ltd,300022817,69.05,746075129
BEIS,The Insolvency Service,07/09/2020,ICT,Digital Technology Services,Insight Direct (UK) Ltd,300022818,137.47,746075129
BEIS,The Insolvency Service,07/09/2020,Off-Site Storage,Official Receiver Services,File Centre,300023275,300.90,885439474
BEIS,The Insolvency Service,07/09/2020,Off-Site Storage,Official Receiver Services,Crown Records Management,300023274,921.43,902181658
BEIS,The Insolvency Service,07/09/2020,Staff Costs - Non-Perms,Digital Technology Services,Advanced 365 Limited,300023276,10080.00,927547983
BEIS,The Insolvency Service,07/09/2020,Staff Costs - Non-Perms,Finance & Commercial,ALEXANDER MANN SOLUTIONS,300023286,50655.71,7444926120
BEIS,The Insolvency Service,07/09/2020,Investigation & Enforcement,Official Receiver Services,Womble Bond Dickinson,300023302,54.84,123 3926 27
BEIS,The Insolvency Service,07/09/2020,Legal - Costs of Civil Litigation Winding Up,Investigations & Enforcement Services,Womble Bond Dickinson,300023303,876.65,123 3926 27
BEIS,The Insolvency Service,07/09/2020,Legal - Costs of Recovering Civil Costs Awarded,Legal Services Division,Womble Bond Dickinson,300023305,4835.82,123 3926 27
BEIS,The Insolvency Service,07/09/2020,Legal - Costs of Civil Litigation Disqualifications,Legal Services Division,Womble Bond Dickinson,300023306,44293.55,123 3926 27
BEIS,The Insolvency Service,07/09/2020,Legal - Costs of Recovering Civil Costs Awarded,Legal Services Division,Burness Paull & Williamsons Solicitors,300023289,470.76,216 2185 32
BEIS,The Insolvency Service,07/09/2020,Legal - Costs of Civil Litigation Disqualifications,Legal Services Division,Burness Paull & Williamsons Solicitors,300023290,5403.00,216 2185 32
BEIS,The Insolvency Service,07/09/2020,ICT,Digital Technology Services,Trustmarque Solutions Ltd,300023283,779.26,727 3486 15
BEIS,The Insolvency Service,07/09/2020,ICT,Digital Technology Services,Trustmarque Solutions Ltd,300023284,524.08,727 3486 15
BEIS,The Insolvency Service,07/09/2020,Staff Costs - Non-Perms,Strategy & Change,SmartSourcing,300023263,12060.00,788 5078 69
BEIS,The Insolvency Service,07/09/2020,Staff Costs - Non-Perms,Strategy & Change,SmartSourcing,300023266,12540.00,788 5078 69
BEIS,The Insolvency Service,07/09/2020,Staff Costs - Non-Perms,Strategy & Change,SmartSourcing,300023268,16200.00,788 5078 69
BEIS,The Insolvency Service,07/09/2020,Staff Costs - Non-Perms,Strategy & Change,SmartSourcing,300023270,11400.00,788 5078 69
BEIS,The Insolvency Service,07/09/2020,Staff Costs - Non-Perms,Strategy & Change,SmartSourcing,300023272,12701.95,788 5078 69
BEIS,The Insolvency Service,07/09/2020,Staff Costs - Non-Perms,Strategy & Change,SmartSourcing,300023278,9282.00,788 5078 69
BEIS,The Insolvency Service,07/09/2020,Staff Costs - Non-Perms,Strategy & Change,SmartSourcing,300023279,12750.00,788 5078 69
BEIS,The Insolvency Service,07/09/2020,Staff Costs - Non-Perms,Strategy & Change,SmartSourcing,300023280,11526.00,788 5078 69
BEIS,The Insolvency Service,07/09/2020,Legal - Costs of Civil Litigation Disqualifications,Legal Services Division,Gowling Wragge Lawrence Graham  & Co,300023225,15867.30,858 698 838
BEIS,The Insolvency Service,07/09/2020,Legal - Costs of Civil Litigation Winding Up,Investigations & Enforcement Services,Gowling Wragge Lawrence Graham  & Co,300023253,46417.50,858 698 838
BEIS,The Insolvency Service,07/09/2020,Legal - Costs of Civil Litigation Winding Up,Investigations & Enforcement Services,Gowling Wragge Lawrence Graham  & Co,300023253,15033.00,858 698 838
BEIS,The Insolvency Service,07/09/2020,Staff Costs - Non-Perms,Digital Technology Services,Netcompany UK Ltd,300023243,11388.00,
BEIS,The Insolvency Service,07/09/2020,ICT,Digital Technology Services,Netcompany UK Ltd,300023244,4860.00,
BEIS,The Insolvency Service,07/09/2020,ICT,Digital Technology Services,Netcompany UK Ltd,300023245,16258.80,
BEIS,The Insolvency Service,07/09/2020,Legal - Costs of Recovering Civil Costs Awarded,Legal Services Division,Tlt Llp,300023292,813.80,
BEIS,The Insolvency Service,07/09/2020,Legal - Outsourced Investigation,Investigations & Enforcement Services,Tlt Llp,300023294,1925.80,
BEIS,The Insolvency Service,07/09/2020,ICT,Digital Technology Services,Vodafone - Cable & Wireless Communications,300022703,240.00,
BEIS,The Insolvency Service,07/09/2020,ICT,Digital Technology Services,Vodafone - Cable & Wireless Communications,300022704,945.36,
BEIS,The Insolvency Service,07/09/2020,ICT,Digital Technology Services,Vodafone - Cable & Wireless Communications,300022705,240.00,
BEIS,The Insolvency Service,07/09/2020,ICT,Digital Technology Services,Vodafone - Cable & Wireless Communications,300023241,579.79,
BEIS,The Insolvency Service,07/09/2020,ICT,Digital Technology Services,Vodafone - Cable & Wireless Communications,300023262,143.89,
BEIS,The Insolvency Service,07/09/2020,Other Costs,Official Receiver Services,The Stationery Office Ltd,300023158,84.00,
BEIS,The Insolvency Service,07/09/2020,Investigation & Enforcement,Investigations & Enforcement Services,Md5 Ltd,300023287,515.00,
BEIS,The Insolvency Service,07/09/2020,"Printing, Stationary & Postage",Business Service Division,Quadient UK,300023264,804.59,
BEIS,The Insolvency Service,07/09/2020,Staff Costs - Non-Perms,Strategy & Change,Ricoh Uk Limited,300023281,3120.00,
BEIS,The Insolvency Service,07/09/2020,ICT,Strategy & Change,Ricoh Uk Limited,300023307,20.40,
BEIS,The Insolvency Service,07/09/2020,ICT,Strategy & Change,Ricoh Uk Limited,300023308,20.40,
BEIS,The Insolvency Service,07/09/2020,ICT,Strategy & Change,Ricoh Uk Limited,300023309,20.40,
BEIS,The Insolvency Service,07/09/2020,ICT,Strategy & Change,Ricoh Uk Limited,300023310,20.40,
BEIS,The Insolvency Service,07/09/2020,ICT,Strategy & Change,Ricoh Uk Limited,300023311,20.40,
BEIS,The Insolvency Service,07/09/2020,ICT,Strategy & Change,Ricoh Uk Limited,300023312,20.40,
BEIS,The Insolvency Service,07/09/2020,ICT,Strategy & Change,Ricoh Uk Limited,300023313,20.40,
BEIS,The Insolvency Service,07/09/2020,ICT,Strategy & Change,Ricoh Uk Limited,300023314,20.40,
BEIS,The Insolvency Service,07/09/2020,ICT,Strategy & Change,Ricoh Uk Limited,300023315,20.40,
BEIS,The Insolvency Service,07/09/2020,ICT,Strategy & Change,Ricoh Uk Limited,300023316,20.40,
BEIS,The Insolvency Service,07/09/2020,ICT,Strategy & Change,Ricoh Uk Limited,300023317,20.40,
BEIS,The Insolvency Service,07/09/2020,ICT,Strategy & Change,Ricoh Uk Limited,300023318,20.40,
BEIS,The Insolvency Service,07/09/2020,ICT,Strategy & Change,Ricoh Uk Limited,300023319,20.40,
BEIS,The Insolvency Service,07/09/2020,ICT,Strategy & Change,Ricoh Uk Limited,300023320,20.40,
BEIS,The Insolvency Service,07/09/2020,ICT,Strategy & Change,Ricoh Uk Limited,300023321,20.40,
BEIS,The Insolvency Service,07/09/2020,ICT,Strategy & Change,Ricoh Uk Limited,300023322,20.40,
BEIS,The Insolvency Service,07/09/2020,ICT,Strategy & Change,Ricoh Uk Limited,300023323,20.40,
BEIS,The Insolvency Service,07/09/2020,ICT,Strategy & Change,Ricoh Uk Limited,300023324,20.40,
BEIS,The Insolvency Service,07/09/2020,ICT,Strategy & Change,Ricoh Uk Limited,300023325,20.40,
BEIS,The Insolvency Service,07/09/2020,ICT,Strategy & Change,Ricoh Uk Limited,300023326,20.40,
BEIS,The Insolvency Service,07/09/2020,ICT,Strategy & Change,Ricoh Uk Limited,300023327,20.40,
BEIS,The Insolvency Service,07/09/2020,ICT,Strategy & Change,Ricoh Uk Limited,300023328,20.40,
BEIS,The Insolvency Service,07/09/2020,Travel & Subsistence,Investigations & Enforcement Services,Staff Payment,900016084,7.00,
BEIS,The Insolvency Service,07/09/2020,Travel & Subsistence,Chief Executive Office,Staff Payment,900016110,45.98,
BEIS,The Insolvency Service,07/09/2020,Travel & Subsistence,Strategy & Change,Staff Payment,900016112,19.99,
BEIS,The Insolvency Service,07/09/2020,Travel & Subsistence,Official Receiver Services,Staff Payment,900016070,51.30,
BEIS,The Insolvency Service,07/09/2020,Travel & Subsistence,Investigations & Enforcement Services,Staff Payment,900016080,2.80,
BEIS,The Insolvency Service,07/09/2020,Travel & Subsistence,Investigations & Enforcement Services,Staff Payment,900016080,6.70,
BEIS,The Insolvency Service,07/09/2020,Travel & Subsistence,Investigations & Enforcement Services,Staff Payment,900016080,61.20,
BEIS,The Insolvency Service,07/09/2020,Travel & Subsistence,Investigations & Enforcement Services,Staff Payment,900016080,48.60,
BEIS,The Insolvency Service,07/09/2020,Travel & Subsistence,Investigations & Enforcement Services,Staff Payment,900016080,4.95,
BEIS,The Insolvency Service,07/09/2020,Travel & Subsistence,Investigations & Enforcement Services,Staff Payment,900016098,16.03,
BEIS,The Insolvency Service,07/09/2020,Travel & Subsistence,Investigations & Enforcement Services,Staff Payment,900016098,6.00,
BEIS,The Insolvency Service,07/09/2020,Travel & Subsistence,Investigations & Enforcement Services,Staff Payment,900016010,4.00,
BEIS,The Insolvency Service,07/09/2020,Travel & Subsistence,Investigations & Enforcement Services,Staff Payment,900016010,4.00,
BEIS,The Insolvency Service,07/09/2020,Travel & Subsistence,Investigations & Enforcement Services,Staff Payment,900016010,11.25,
BEIS,The Insolvency Service,07/09/2020,Travel & Subsistence,Investigations & Enforcement Services,Staff Payment,900016010,24.30,
BEIS,The Insolvency Service,07/09/2020,Travel & Subsistence,Investigations & Enforcement Services,Staff Payment,900016010,11.25,
BEIS,The Insolvency Service,07/09/2020,Travel & Subsistence,Investigations & Enforcement Services,Staff Payment,900016010,26.10,
BEIS,The Insolvency Service,07/09/2020,Travel & Subsistence,Investigations & Enforcement Services,Staff Payment,900016103,3.10,
BEIS,The Insolvency Service,07/09/2020,Travel & Subsistence,Investigations & Enforcement Services,Staff Payment,900016103,9.30,
BEIS,The Insolvency Service,07/09/2020,Travel & Subsistence,Investigations & Enforcement Services,Staff Payment,900016093,59.84,
BEIS,The Insolvency Service,07/09/2020,Travel & Subsistence,Investigations & Enforcement Services,Staff Payment,900016093,5.00,
BEIS,The Insolvency Service,07/09/2020,Travel & Subsistence,Investigations & Enforcement Services,Staff Payment,900016093,1.00,
BEIS,The Insolvency Service,07/09/2020,Travel & Subsistence,Investigations & Enforcement Services,Staff Payment,900016093,15.00,
BEIS,The Insolvency Service,07/09/2020,Travel & Subsistence,Investigations & Enforcement Services,Staff Payment,900016093,5.00,
BEIS,The Insolvency Service,07/09/2020,Travel & Subsistence,Investigations & Enforcement Services,Staff Payment,900016101,96.30,
BEIS,The Insolvency Service,07/09/2020,Travel & Subsistence,Investigations & Enforcement Services,Staff Payment,900016101,28.35,
BEIS,The Insolvency Service,07/09/2020,Travel & Subsistence,Investigations & Enforcement Services,Staff Payment,900016101,119.25,
BEIS,The Insolvency Service,07/09/2020,Travel & Subsistence,Investigations & Enforcement Services,Staff Payment,900016101,205.65,
BEIS,The Insolvency Service,07/09/2020,Travel & Subsistence,Investigations & Enforcement Services,Staff Payment,900016101,131.85,
BEIS,The Insolvency Service,07/09/2020,Travel & Subsistence,Official Receiver Services,Staff Payment,900016113,12.26,
BEIS,The Insolvency Service,07/09/2020,Travel & Subsistence,Investigations & Enforcement Services,Staff Payment,900016099,10.80,
BEIS,The Insolvency Service,07/09/2020,Travel & Subsistence,Investigations & Enforcement Services,Staff Payment,900016099,9.90,
BEIS,The Insolvency Service,07/09/2020,Legal - Costs of Civil Litigation Disqualifications,Legal Services Division,SUNDRY SUPPLIER,300023258,1584.00,
BEIS,The Insolvency Service,07/09/2020,Training,Investigations & Enforcement Services,SUNDRY SUPPLIER,300023296,1495.00,
BEIS,The Insolvency Service,08/09/2020,Other Costs,Official Receiver Services,John Pye & Sons Limited,300023261,235.32,117777249
BEIS,The Insolvency Service,08/09/2020,Estates - Property,Finance & Commercial,Edf Energy,300023331,530.88,523041202
BEIS,The Insolvency Service,08/09/2020,Other Costs,Business Service Division,SmartSurvey Ltd,300023092,3000.00,840574625
BEIS,The Insolvency Service,08/09/2020,ICT,Digital Technology Services,Geoff Smith Associates Ltd,300023298,24763.33,813 0471 66
BEIS,The Insolvency Service,08/09/2020,ICT,Digital Technology Services,Netcompany UK Ltd,300023246,26263.20,
BEIS,The Insolvency Service,08/09/2020,ICT,Digital Technology Services,Netcompany UK Ltd,300023247,26263.20,
BEIS,The Insolvency Service,08/09/2020,Legal - Costs of Civil Litigation Winding Up,Investigations & Enforcement Services,Tlt Llp,300023293,544.30,
BEIS,The Insolvency Service,08/09/2020,Other Costs,Official Receiver Services,The Stationery Office Ltd,300023233,84.00,
BEIS,The Insolvency Service,08/09/2020,Other Costs,Official Receiver Services,The Stationery Office Ltd,300023234,84.00,
BEIS,The Insolvency Service,08/09/2020,Other Costs,Official Receiver Services,The Stationery Office Ltd,300023285,84.00,
BEIS,The Insolvency Service,08/09/2020,Estates - Property,Finance & Commercial,Cbre Limited,300022583,52200.26,
BEIS,The Insolvency Service,08/09/2020,Estates - Property,Finance & Commercial,Cbre Limited,300023185,2373.78,
BEIS,The Insolvency Service,08/09/2020,ICT,Strategy & Change,Ricoh Uk Limited,300023333,576.00,
BEIS,The Insolvency Service,08/09/2020,ICT,Strategy & Change,Ricoh Uk Limited,300023334,238.20,
BEIS,The Insolvency Service,08/09/2020,ICT,Strategy & Change,Ricoh Uk Limited,300023335,12.00,
BEIS,The Insolvency Service,08/09/2020,ICT,Strategy & Change,Ricoh Uk Limited,300023337,12.00,
BEIS,The Insolvency Service,08/09/2020,ICT,Strategy & Change,Ricoh Uk Limited,300023338,12.00,
BEIS,The Insolvency Service,08/09/2020,ICT,Strategy & Change,Ricoh Uk Limited,300023340,238.20,
BEIS,The Insolvency Service,08/09/2020,ICT,Strategy & Change,Ricoh Uk Limited,300023341,768.00,
BEIS,The Insolvency Service,08/09/2020,ICT,Strategy & Change,Ricoh Uk Limited,300023344,226.20,
BEIS,The Insolvency Service,08/09/2020,ICT,Strategy & Change,Ricoh Uk Limited,300023345,226.20,
BEIS,The Insolvency Service,08/09/2020,ICT,Strategy & Change,Ricoh Uk Limited,300023346,226.20,
BEIS,The Insolvency Service,08/09/2020,ICT,Strategy & Change,Ricoh Uk Limited,300023347,226.20,
BEIS,The Insolvency Service,08/09/2020,ICT,Strategy & Change,Ricoh Uk Limited,300023348,226.20,
BEIS,The Insolvency Service,08/09/2020,ICT,Strategy & Change,Ricoh Uk Limited,300023349,226.20,
BEIS,The Insolvency Service,08/09/2020,ICT,Strategy & Change,Ricoh Uk Limited,300023350,226.20,
BEIS,The Insolvency Service,08/09/2020,ICT,Strategy & Change,Ricoh Uk Limited,300023351,226.20,
BEIS,The Insolvency Service,08/09/2020,ICT,Strategy & Change,Ricoh Uk Limited,300023352,226.20,
BEIS,The Insolvency Service,08/09/2020,ICT,Strategy & Change,Ricoh Uk Limited,300023353,238.20,
BEIS,The Insolvency Service,08/09/2020,Travel & Subsistence,Official Receiver Services,Staff Payment,900016120,8.82,
BEIS,The Insolvency Service,08/09/2020,Travel & Subsistence,Official Receiver Services,Staff Payment,900016120,29.40,
BEIS,The Insolvency Service,08/09/2020,Travel & Subsistence,Finance & Commercial,Staff Payment,900016121,10.00,
BEIS,The Insolvency Service,08/09/2020,Travel & Subsistence,Finance & Commercial,Staff Payment,900016121,15.00,
BEIS,The Insolvency Service,08/09/2020,Travel & Subsistence,Finance & Commercial,Staff Payment,900016121,5.00,
BEIS,The Insolvency Service,08/09/2020,Travel & Subsistence,Investigations & Enforcement Services,Staff Payment,900016114,20.00,
BEIS,The Insolvency Service,08/09/2020,Travel & Subsistence,Investigations & Enforcement Services,Staff Payment,900016114,5.00,
BEIS,The Insolvency Service,08/09/2020,Travel & Subsistence,Investigations & Enforcement Services,Staff Payment,900016114,14.70,
BEIS,The Insolvency Service,08/09/2020,Travel & Subsistence,Investigations & Enforcement Services,Staff Payment,900016114,20.00,
BEIS,The Insolvency Service,08/09/2020,Travel & Subsistence,Investigations & Enforcement Services,Staff Payment,900016114,8.98,
BEIS,The Insolvency Service,08/09/2020,Travel & Subsistence,Investigations & Enforcement Services,Staff Payment,900016114,9.35,
BEIS,The Insolvency Service,08/09/2020,Travel & Subsistence,Investigations & Enforcement Services,Staff Payment,900016114,5.00,
BEIS,The Insolvency Service,08/09/2020,Travel & Subsistence,Investigations & Enforcement Services,Staff Payment,900016114,15.00,
BEIS,The Insolvency Service,08/09/2020,Travel & Subsistence,Investigations & Enforcement Services,Staff Payment,900016114,9.23,
BEIS,The Insolvency Service,08/09/2020,Travel & Subsistence,Investigations & Enforcement Services,Staff Payment,900016114,10.00,
BEIS,The Insolvency Service,08/09/2020,Travel & Subsistence,Investigations & Enforcement Services,Staff Payment,900016116,19.40,
BEIS,The Insolvency Service,08/09/2020,Travel & Subsistence,Investigations & Enforcement Services,Staff Payment,900016116,2.74,
BEIS,The Insolvency Service,08/09/2020,Travel & Subsistence,Investigations & Enforcement Services,Staff Payment,900016116,10.00,
BEIS,The Insolvency Service,08/09/2020,Travel & Subsistence,Investigations & Enforcement Services,Staff Payment,900016116,10.00,
BEIS,The Insolvency Service,08/09/2020,Travel & Subsistence,Business Service Division,Staff Payment,900016079,51.70,
BEIS,The Insolvency Service,08/09/2020,Travel & Subsistence,Business Service Division,Staff Payment,900016079,6.00,
BEIS,The Insolvency Service,08/09/2020,Travel & Subsistence,Finance & Commercial,Staff Payment,900016102,64.99,
BEIS,The Insolvency Service,08/09/2020,Travel & Subsistence,Finance & Commercial,Staff Payment,900016102,67.87,
BEIS,The Insolvency Service,08/09/2020,Travel & Subsistence,Finance & Commercial,Staff Payment,900016102,37.33,
BEIS,The Insolvency Service,08/09/2020,Travel & Subsistence,Finance & Commercial,Staff Payment,900016102,3.70,
BEIS,The Insolvency Service,08/09/2020,Travel & Subsistence,Finance & Commercial,Staff Payment,900016102,5.00,
BEIS,The Insolvency Service,08/09/2020,Travel & Subsistence,Finance & Commercial,Staff Payment,900016102,3.89,
BEIS,The Insolvency Service,08/09/2020,Travel & Subsistence,Investigations & Enforcement Services,Staff Payment,900015979,50.00,
BEIS,The Insolvency Service,08/09/2020,Travel & Subsistence,Official Receiver Services,Staff Payment,900015867,6.42,
BEIS,The Insolvency Service,08/09/2020,Travel & Subsistence,Official Receiver Services,Staff Payment,900015867,7.46,
BEIS,The Insolvency Service,08/09/2020,Travel & Subsistence,Official Receiver Services,Staff Payment,900016076,6.18,
BEIS,The Insolvency Service,08/09/2020,Travel & Subsistence,Official Receiver Services,Staff Payment,900016076,6.00,
BEIS,The Insolvency Service,09/09/2020,ICT,Digital Technology Services,Insight Direct (UK) Ltd,300023198,72980.80,746075129
BEIS,The Insolvency Service,09/09/2020,Staff Costs - Non-Perms,Digital Technology Services,SmartSourcing,300023273,8925.00,788 5078 69
BEIS,The Insolvency Service,09/09/2020,Staff Costs - Non-Perms,Digital Technology Services,SmartSourcing,300023291,12420.00,788 5078 69
BEIS,The Insolvency Service,09/09/2020,ICT,Digital Technology Services,Bytes Software Services,300023195,1262.28,
BEIS,The Insolvency Service,09/09/2020,Investigation & Enforcement,Investigations & Enforcement Services,Md5 Ltd,300023359,-4560.00,
BEIS,The Insolvency Service,09/09/2020,Investigation & Enforcement,Investigations & Enforcement Services,Md5 Ltd,300023360,4560.00,
BEIS,The Insolvency Service,09/09/2020,Travel & Subsistence,Investigations & Enforcement Services,Staff Payment,900016005,25.20,
BEIS,The Insolvency Service,09/09/2020,Travel & Subsistence,Investigations & Enforcement Services,Staff Payment,900016005,7.00,
BEIS,The Insolvency Service,09/09/2020,Travel & Subsistence,Investigations & Enforcement Services,Staff Payment,900016005,14.00,
BEIS,The Insolvency Service,09/09/2020,Travel & Subsistence,Legal Services Division,Staff Payment,900015990,24.99,
BEIS,The Insolvency Service,09/09/2020,Travel & Subsistence,Investigations & Enforcement Services,Staff Payment,900016122,19.40,
BEIS,The Insolvency Service,09/09/2020,Travel & Subsistence,Investigations & Enforcement Services,Staff Payment,900016122,4.22,
BEIS,The Insolvency Service,09/09/2020,Travel & Subsistence,Finance & Commercial,Staff Payment,900016085,50.85,
BEIS,The Insolvency Service,09/09/2020,Travel & Subsistence,Finance & Commercial,Staff Payment,900016085,50.85,
BEIS,The Insolvency Service,09/09/2020,Travel & Subsistence,Official Receiver Services,Staff Payment,900016126,13.09,
BEIS,The Insolvency Service,09/09/2020,Travel & Subsistence,Official Receiver Services,Staff Payment,900016127,5.00,
BEIS,The Insolvency Service,09/09/2020,Travel & Subsistence,Official Receiver Services,Staff Payment,900016127,4.67,
BEIS,The Insolvency Service,09/09/2020,Travel & Subsistence,Official Receiver Services,Staff Payment,900016127,43.20,
BEIS,The Insolvency Service,09/09/2020,Travel & Subsistence,Official Receiver Services,Staff Payment,900016127,43.65,
BEIS,The Insolvency Service,09/09/2020,Travel & Subsistence,Official Receiver Services,Staff Payment,900016128,5.00,
BEIS,The Insolvency Service,09/09/2020,Travel & Subsistence,Official Receiver Services,Staff Payment,900016128,43.20,
BEIS,The Insolvency Service,09/09/2020,Travel & Subsistence,Official Receiver Services,Staff Payment,900016128,43.65,
BEIS,The Insolvency Service,09/09/2020,Travel & Subsistence,Official Receiver Services,Staff Payment,900016128,15.00,
BEIS,The Insolvency Service,09/09/2020,Travel & Subsistence,Official Receiver Services,Staff Payment,900016128,4.86,
BEIS,The Insolvency Service,09/09/2020,Travel & Subsistence,Investigations & Enforcement Services,Staff Payment,900016117,41.26,
BEIS,The Insolvency Service,09/09/2020,Travel & Subsistence,Official Receiver Services,Staff Payment,900016115,3.40,
BEIS,The Insolvency Service,09/09/2020,Travel & Subsistence,People & Capability,Staff Payment,900016051,50.00,
BEIS,The Insolvency Service,09/09/2020,Travel & Subsistence,Official Receiver Services,Staff Payment,900016124,12.60,
BEIS,The Insolvency Service,09/09/2020,Travel & Subsistence,Official Receiver Services,Staff Payment,900016124,12.60,
BEIS,The Insolvency Service,09/09/2020,Travel & Subsistence,Official Receiver Services,Staff Payment,900016124,3.19,
BEIS,The Insolvency Service,09/09/2020,Travel & Subsistence,Investigations & Enforcement Services,Staff Payment,900016097,1.19,
BEIS,The Insolvency Service,09/09/2020,Travel & Subsistence,Investigations & Enforcement Services,Staff Payment,900016097,3.10,
BEIS,The Insolvency Service,09/09/2020,Travel & Subsistence,Investigations & Enforcement Services,Staff Payment,900016097,5.85,
BEIS,The Insolvency Service,09/09/2020,Travel & Subsistence,Investigations & Enforcement Services,Staff Payment,900016092,46.80,
BEIS,The Insolvency Service,09/09/2020,HR,People & Capability,Vita Health Group,300023103,481.57,
BEIS,The Insolvency Service,10/09/2020,"Printing, Stationary & Postage",Business Service Division,Royal Mail,300023377,160.06,243170002
BEIS,The Insolvency Service,10/09/2020,Legal - Costs of Civil Litigation Winding Up,Investigations & Enforcement Services,Howes Percival,300023379,1131.00,119 5235 73
BEIS,The Insolvency Service,10/09/2020,Legal - Costs of Recovering Civil Costs Awarded,Legal Services Division,Howes Percival,300023380,456.00,119 5235 73
BEIS,The Insolvency Service,10/09/2020,"Printing, Stationary & Postage",Business Service Division,Banner Business Services Ltd,300023265,550.26,731 8604 39
BEIS,The Insolvency Service,10/09/2020,"Printing, Stationary & Postage",Business Service Division,Banner Business Services Ltd,300023265,842.25,731 8604 39
BEIS,The Insolvency Service,10/09/2020,ICT,Finance & Commercial,ACS Business Supplies,300023376,133073.82,933 4254 32
BEIS,The Insolvency Service,10/09/2020,"Printing, Stationary & Postage",Business Service Division,City Sprint Uk Ltd,300023240,1134.52,997 3273 64
BEIS,The Insolvency Service,10/09/2020,Other Costs,Business Service Division,Equifax Ltd,300023301,78.00,
BEIS,The Insolvency Service,10/09/2020,Estates - Property,Strategy & Change,Arc Business Interiors,300023400,1674.00,
BEIS,The Insolvency Service,10/09/2020,Legal - Costs of Civil Litigation Disqualifications,Legal Services Division,Exchange Chambers,300023375,485.83,
BEIS,The Insolvency Service,10/09/2020,Estates - Property,Finance & Commercial,Exeter City Council,300023406,51135.59,
BEIS,The Insolvency Service,10/09/2020,Estates - Property,Finance & Commercial,GPA (C/O Montagu Evans LLP),300023383,25973.69,
BEIS,The Insolvency Service,10/09/2020,Estates - Property,Finance & Commercial,GPA (C/O Montagu Evans LLP),300023384,39531.67,
BEIS,The Insolvency Service,10/09/2020,Estates - Property,Finance & Commercial,GPA (C/O Montagu Evans LLP),300023399,30817.80,
BEIS,The Insolvency Service,10/09/2020,Training,People & Capability,KPMG,300022834,45.60,
BEIS,The Insolvency Service,10/09/2020,Travel & Subsistence,Official Receiver Services,Staff Payment,900016123,1.52,
BEIS,The Insolvency Service,10/09/2020,Travel & Subsistence,Official Receiver Services,Staff Payment,900016123,1.52,
BEIS,The Insolvency Service,10/09/2020,Travel & Subsistence,Official Receiver Services,Staff Payment,900016123,6.00,
BEIS,The Insolvency Service,10/09/2020,Travel & Subsistence,Finance & Commercial,Staff Payment,900016134,3.70,
BEIS,The Insolvency Service,10/09/2020,Travel & Subsistence,Finance & Commercial,Staff Payment,900016134,5.00,
BEIS,The Insolvency Service,10/09/2020,Travel & Subsistence,Finance & Commercial,Staff Payment,900016134,1.64,
BEIS,The Insolvency Service,10/09/2020,Travel & Subsistence,Finance & Commercial,Staff Payment,900016134,50.28,
BEIS,The Insolvency Service,10/09/2020,Travel & Subsistence,Finance & Commercial,Staff Payment,900016134,22.00,
BEIS,The Insolvency Service,10/09/2020,Travel & Subsistence,Finance & Commercial,Staff Payment,900016134,15.00,
BEIS,The Insolvency Service,10/09/2020,Travel & Subsistence,Finance & Commercial,Staff Payment,900016134,4.45,
BEIS,The Insolvency Service,10/09/2020,Travel & Subsistence,Investigations & Enforcement Services,Staff Payment,900003339,17.90,
BEIS,The Insolvency Service,10/09/2020,Travel & Subsistence,Investigations & Enforcement Services,Staff Payment,900003339,3.00,
BEIS,The Insolvency Service,10/09/2020,Travel & Subsistence,Investigations & Enforcement Services,Staff Payment,900003339,1.69,
BEIS,The Insolvency Service,10/09/2020,Travel & Subsistence,Digital Technology Services,Staff Payment,900016132,53.54,
BEIS,The Insolvency Service,10/09/2020,Travel & Subsistence,Digital Technology Services,Staff Payment,900016132,19.99,
BEIS,The Insolvency Service,10/09/2020,Travel & Subsistence,Finance & Commercial,Staff Payment,900016130,17.50,
BEIS,The Insolvency Service,10/09/2020,Travel & Subsistence,Finance & Commercial,Staff Payment,900016130,11.00,
BEIS,The Insolvency Service,10/09/2020,Travel & Subsistence,Finance & Commercial,Staff Payment,900016130,131.85,
BEIS,The Insolvency Service,10/09/2020,Travel & Subsistence,Finance & Commercial,Staff Payment,900016130,7.45,
BEIS,The Insolvency Service,10/09/2020,Travel & Subsistence,Finance & Commercial,Staff Payment,900016130,9.20,
BEIS,The Insolvency Service,10/09/2020,Travel & Subsistence,Finance & Commercial,Staff Payment,900016130,105.30,
BEIS,The Insolvency Service,11/09/2020,HR,People & Capability,Duradiamond Healthcare Limited,300023403,873.29,806426440
BEIS,The Insolvency Service,11/09/2020,Staff Costs - Non-Perms,Finance & Commercial,Pertemps Recruitment Partnership Limited,300023432,451.58,844278800
BEIS,The Insolvency Service,11/09/2020,Legal - Costs of Civil Litigation Disqualifications,Legal Services Division,Howes Percival,300023381,19796.71,119 5235 73
BEIS,The Insolvency Service,11/09/2020,Legal - Costs of Civil Litigation Disqualifications,Legal Services Division,Howes Percival,300023381,75.00,119 5235 73
BEIS,The Insolvency Service,11/09/2020,Legal - Costs of Civil Litigation Winding Up,Investigations & Enforcement Services,Burness Paull & Williamsons Solicitors,300023382,5632.70,216 2185 32
BEIS,The Insolvency Service,11/09/2020,Staff Costs - Non-Perms,Strategy & Change,SmartSourcing,300023434,12600.00,788 5078 69
BEIS,The Insolvency Service,11/09/2020,ICT,Chief Executive Office,Granicus,300023433,1170.96,
BEIS,The Insolvency Service,11/09/2020,Estates - Property,Finance & Commercial,Plymouth City Council,300023401,756.00,
BEIS,The Insolvency Service,11/09/2020,Estates - Property,Finance & Commercial,Sheffield City Council,300023439,1750.00,
BEIS,The Insolvency Service,11/09/2020,Travel & Subsistence,Investigations & Enforcement Services,Staff Payment,900015387,103.50,
BEIS,The Insolvency Service,11/09/2020,Travel & Subsistence,Investigations & Enforcement Services,Staff Payment,900015387,5.40,
BEIS,The Insolvency Service,11/09/2020,Travel & Subsistence,Investigations & Enforcement Services,Staff Payment,900015387,40.50,
BEIS,The Insolvency Service,11/09/2020,Travel & Subsistence,Investigations & Enforcement Services,Staff Payment,900015387,10.00,
BEIS,The Insolvency Service,11/09/2020,Travel & Subsistence,Investigations & Enforcement Services,Staff Payment,900015387,50.40,
BEIS,The Insolvency Service,11/09/2020,Travel & Subsistence,Investigations & Enforcement Services,Staff Payment,900015387,5.00,
BEIS,The Insolvency Service,11/09/2020,Travel & Subsistence,Investigations & Enforcement Services,Staff Payment,900016135,45.00,
BEIS,The Insolvency Service,11/09/2020,Travel & Subsistence,Official Receiver Services,Staff Payment,900016125,5.10,
BEIS,The Insolvency Service,14/09/2020,Legal - Costs of Civil Litigation Disqualifications,Legal Services Division,Enterprise Chambers,300023452,162.00,107042165
BEIS,The Insolvency Service,14/09/2020,Legal - Costs of Criminal Prosecutions and Advice,Legal Services Division,18 Red Lion Court Chambers,300023453,990.00,766793665
BEIS,The Insolvency Service,14/09/2020,Legal - Costs of Criminal Prosecutions and Advice,Legal Services Division,18 Red Lion Court Chambers,300023454,3129.84,766793665
BEIS,The Insolvency Service,14/09/2020,Legal - Costs of Civil Litigation Disqualifications,Legal Services Division,Enterprise Chambers,300023451,972.00,938136900
BEIS,The Insolvency Service,14/09/2020,Legal - Costs of Civil Litigation Disqualifications,Legal Services Division,Selbourne Chambers,300023447,504.00,1036299146
BEIS,The Insolvency Service,14/09/2020,Legal - Costs of Civil Litigation Disqualifications,Legal Services Division,Selbourne Chambers,300023448,1008.00,1036299146
BEIS,The Insolvency Service,14/09/2020,Legal - Costs of Civil Litigation Disqualifications,Legal Services Division,Exchange Chambers,300023449,291.50,
BEIS,The Insolvency Service,14/09/2020,Legal - Costs of Civil Litigation Disqualifications,Legal Services Division,Exchange Chambers,300023450,513.33,
BEIS,The Insolvency Service,14/09/2020,Legal - Costs of Criminal Prosecutions and Advice,Legal Services Division,Police And Crime Commissioner For Hampshire,300023446,742.00,
BEIS,The Insolvency Service,14/09/2020,Travel & Subsistence,Business Service Division,Staff Payment,900016081,5.35,
BEIS,The Insolvency Service,14/09/2020,Travel & Subsistence,Business Service Division,Staff Payment,900016086,8.48,
BEIS,The Insolvency Service,14/09/2020,Travel & Subsistence,Investigations & Enforcement Services,Staff Payment,900016141,2.00,
BEIS,The Insolvency Service,14/09/2020,Travel & Subsistence,Investigations & Enforcement Services,Staff Payment,900016141,2.00,
BEIS,The Insolvency Service,14/09/2020,Travel & Subsistence,Investigations & Enforcement Services,Staff Payment,900016141,63.00,
BEIS,The Insolvency Service,14/09/2020,Travel & Subsistence,Investigations & Enforcement Services,Staff Payment,900016141,63.00,
BEIS,The Insolvency Service,14/09/2020,Travel & Subsistence,Investigations & Enforcement Services,Staff Payment,900016042,9.00,
BEIS,The Insolvency Service,14/09/2020,Travel & Subsistence,Investigations & Enforcement Services,Staff Payment,900016042,18.00,
BEIS,The Insolvency Service,14/09/2020,Travel & Subsistence,Investigations & Enforcement Services,Staff Payment,900016042,15.00,
BEIS,The Insolvency Service,14/09/2020,Travel & Subsistence,Investigations & Enforcement Services,Staff Payment,900016042,50.00,
BEIS,The Insolvency Service,14/09/2020,Travel & Subsistence,Investigations & Enforcement Services,Staff Payment,900016042,20.00,
BEIS,The Insolvency Service,14/09/2020,Travel & Subsistence,Investigations & Enforcement Services,Staff Payment,900016042,19.38,
BEIS,The Insolvency Service,14/09/2020,Travel & Subsistence,Investigations & Enforcement Services,Staff Payment,900016042,23.22,
BEIS,The Insolvency Service,14/09/2020,Travel & Subsistence,Investigations & Enforcement Services,Staff Payment,900016042,26.00,
BEIS,The Insolvency Service,14/09/2020,Travel & Subsistence,Investigations & Enforcement Services,Staff Payment,900016042,5.00,
BEIS,The Insolvency Service,14/09/2020,Travel & Subsistence,Investigations & Enforcement Services,Staff Payment,900016140,48.00,
BEIS,The Insolvency Service,14/09/2020,Travel & Subsistence,Official Receiver Services,Staff Payment,900016139,2.70,
BEIS,The Insolvency Service,14/09/2020,Travel & Subsistence,Official Receiver Services,Staff Payment,900016139,11.70,
BEIS,The Insolvency Service,14/09/2020,Travel & Subsistence,Official Receiver Services,Staff Payment,900016087,73.92,
BEIS,The Insolvency Service,14/09/2020,Legal - Costs of Criminal Prosecutions and Advice,Legal Services Division,SUNDRY SUPPLIER,300023445,869.40,
BEIS,The Insolvency Service,15/09/2020,ICT,Digital Technology Services,Daisy Corporate Services Trading Limited,300022729,19382.04,722471355
BEIS,The Insolvency Service,15/09/2020,Estates - Property,Finance & Commercial,Acenes House Ltd,300023461,15129.60,182 6969 58
BEIS,The Insolvency Service,15/09/2020,Investigation & Enforcement,Official Receiver Services,Burness Paull & Williamsons Solicitors,300023440,4106.88,216 2185 32
BEIS,The Insolvency Service,15/09/2020,Staff Costs - Non-Perms,Digital Technology Services,SmartSourcing,300023267,14040.00,788 5078 69
BEIS,The Insolvency Service,15/09/2020,Staff Costs - Non-Perms,Digital Technology Services,SmartSourcing,300023269,7500.00,788 5078 69
BEIS,The Insolvency Service,15/09/2020,Staff Costs - Non-Perms,Digital Technology Services,SmartSourcing,300023271,10200.00,788 5078 69
BEIS,The Insolvency Service,15/09/2020,Legal - Costs of Civil Litigation Disqualifications,Legal Services Division,Shepherd & Wedderburn Ws (English Cases),300023441,700.90,890 5593 86
BEIS,The Insolvency Service,15/09/2020,Legal - Costs of Civil Litigation Disqualifications,Legal Services Division,Tlt Llp,300023442,13926.40,
BEIS,The Insolvency Service,15/09/2020,Legal - Costs of Civil Litigation Disqualifications,Legal Services Division,Tlt Llp,300023442,50.00,
BEIS,The Insolvency Service,15/09/2020,Legal - Costs of Civil Litigation Winding Up,Investigations & Enforcement Services,Tlt Llp,300023455,21024.70,
BEIS,The Insolvency Service,15/09/2020,Legal - Costs of Civil Litigation Winding Up,Investigations & Enforcement Services,Tlt Llp,300023456,11478.50,
BEIS,The Insolvency Service,15/09/2020,HR,People & Capability,Cabinet Office,300023299,58.80,
BEIS,The Insolvency Service,15/09/2020,HR,People & Capability,Cabinet Office,300023300,8101.80,
BEIS,The Insolvency Service,15/09/2020,ICT,Strategy & Change,Ricoh Uk Limited,300023339,12.00,
BEIS,The Insolvency Service,15/09/2020,Travel & Subsistence,Finance & Commercial,Staff Payment,900016143,9.65,
BEIS,The Insolvency Service,15/09/2020,Travel & Subsistence,Finance & Commercial,Staff Payment,900016143,15.00,
BEIS,The Insolvency Service,15/09/2020,Travel & Subsistence,Finance & Commercial,Staff Payment,900016143,5.00,
BEIS,The Insolvency Service,15/09/2020,Travel & Subsistence,Official Receiver Services,Staff Payment,900016107,58.50,
BEIS,The Insolvency Service,16/09/2020,ICT,Digital Technology Services,Nomensa Limited,300023405,38760.00,771727411
BEIS,The Insolvency Service,16/09/2020,ICT,Digital Technology Services,Ukcloud Ltd,300023193,9274.28,172 647 982
BEIS,The Insolvency Service,16/09/2020,ICT,Digital Technology Services,Trustmarque Solutions Ltd,300023282,1866.48,727 3486 15
BEIS,The Insolvency Service,16/09/2020,ICT,Digital Technology Services,Experian Qas Ltd,300023364,1483.82,887 1335 93
BEIS,The Insolvency Service,16/09/2020,Other Costs,Business Service Division,Hm Treasury,300023481,16750.00,888 8275 44
BEIS,The Insolvency Service,16/09/2020,Estates - Property,Finance & Commercial,Jones Lang Lasalle (Amas Ltd) - (Rent & Property Costs),300023486,28290.00,
BEIS,The Insolvency Service,16/09/2020,Legal - Costs of Civil Litigation Disqualifications,Legal Services Division,Tlt Llp,300023472,976.90,
BEIS,The Insolvency Service,16/09/2020,ICT,Digital Technology Services,Gamma Business Communications Ltd,300023402,303.54,
BEIS,The Insolvency Service,16/09/2020,Estates - Property,Finance & Commercial,Cbre Limited,300023473,450.89,
BEIS,The Insolvency Service,16/09/2020,Estates - Property,Finance & Commercial,Cbre Limited,300023474,502.30,
BEIS,The Insolvency Service,16/09/2020,Estates - Property,Finance & Commercial,Cbre Limited,300023475,978.46,
BEIS,The Insolvency Service,16/09/2020,Estates - Property,Finance & Commercial,Cbre Limited,300023476,427.68,
BEIS,The Insolvency Service,16/09/2020,Estates - Property,Finance & Commercial,Cbre Limited,300023477,117.17,
BEIS,The Insolvency Service,16/09/2020,Estates - Property,Finance & Commercial,Cbre Limited,300023478,436.62,
BEIS,The Insolvency Service,16/09/2020,Estates - Property,Finance & Commercial,Cbre Limited,300023479,469.88,
BEIS,The Insolvency Service,16/09/2020,Estates - Property,Finance & Commercial,GPA (C/O Montagu Evans LLP),300023889,9822.32,
BEIS,The Insolvency Service,16/09/2020,Travel & Subsistence,Official Receiver Services,Staff Payment,900016155,119.98,
BEIS,The Insolvency Service,16/09/2020,Travel & Subsistence,Official Receiver Services,Staff Payment,900016152,81.70,
BEIS,The Insolvency Service,16/09/2020,Travel & Subsistence,Official Receiver Services,Staff Payment,900016156,9.40,
BEIS,The Insolvency Service,16/09/2020,Travel & Subsistence,Investigations & Enforcement Services,Staff Payment,900016142,13.50,
BEIS,The Insolvency Service,16/09/2020,Travel & Subsistence,Investigations & Enforcement Services,Staff Payment,900016142,12.50,
BEIS,The Insolvency Service,16/09/2020,Travel & Subsistence,Investigations & Enforcement Services,Staff Payment,900016153,5.00,
BEIS,The Insolvency Service,16/09/2020,Travel & Subsistence,Investigations & Enforcement Services,Staff Payment,900016153,45.90,
BEIS,The Insolvency Service,16/09/2020,Travel & Subsistence,Finance & Commercial,Staff Payment,900016144,5.00,
BEIS,The Insolvency Service,16/09/2020,Travel & Subsistence,Finance & Commercial,Staff Payment,900016144,8.55,
BEIS,The Insolvency Service,16/09/2020,Travel & Subsistence,Finance & Commercial,Staff Payment,900016144,14.15,
BEIS,The Insolvency Service,16/09/2020,Travel & Subsistence,Finance & Commercial,Staff Payment,900016144,144.00,
BEIS,The Insolvency Service,17/09/2020,Legal - Costs of Civil Litigation Disqualifications,Legal Services Division,Mills & Reeve LLP,300023489,4910.50,104834588
BEIS,The Insolvency Service,17/09/2020,Legal - Costs of Civil Litigation Disqualifications,Legal Services Division,Mills & Reeve LLP,300023489,100.00,104834588
BEIS,The Insolvency Service,17/09/2020,ICT,Digital Technology Services,Nomensa Limited,300023404,231990.00,771727411
BEIS,The Insolvency Service,17/09/2020,Legal - Costs of Civil Litigation Disqualifications,Legal Services Division,18 St John Street Chambers,300023535,528.00,826858289
BEIS,The Insolvency Service,17/09/2020,Legal - Costs of Civil Litigation Disqualifications,Legal Services Division,South Square,300023536,2508.00,843274916
BEIS,The Insolvency Service,17/09/2020,Off-Site Storage,Official Receiver Services,Restore Plc (Records Management),300023487,7166.39,843863011
BEIS,The Insolvency Service,17/09/2020,Legal - Costs of Civil Litigation Disqualifications,Legal Services Division,Enterprise Chambers,300023537,396.00,900864046
BEIS,The Insolvency Service,17/09/2020,ICT,Digital Technology Services,Experian Qas Ltd,300023363,9783.60,887 1335 93
BEIS,The Insolvency Service,17/09/2020,Other Costs,Official Receiver Services,The Stationery Office Ltd,300023468,84.00,
BEIS,The Insolvency Service,17/09/2020,Legal - Costs of Civil Litigation Disqualifications,Legal Services Division,Exchange Chambers,300023531,238.34,
BEIS,The Insolvency Service,17/09/2020,Legal - Costs of Civil Litigation Disqualifications,Legal Services Division,Exchange Chambers,300023533,559.17,
BEIS,The Insolvency Service,17/09/2020,Legal - Costs of Civil Litigation Disqualifications,Legal Services Division,Exchange Chambers,300023534,210.00,
BEIS,The Insolvency Service,17/09/2020,Estates - Property,Finance & Commercial,GPA (C/O Montagu Evans LLP),300023518,10475.89,
BEIS,The Insolvency Service,17/09/2020,Estates - Property,Finance & Commercial,GPA (C/O Montagu Evans LLP),300023519,9508.30,
BEIS,The Insolvency Service,17/09/2020,Estates - Property,Finance & Commercial,GPA (C/O Montagu Evans LLP),300023520,3779.78,
BEIS,The Insolvency Service,17/09/2020,Estates - Property,Finance & Commercial,GPA (C/O Montagu Evans LLP),300023522,4894.39,
BEIS,The Insolvency Service,17/09/2020,Estates - Property,Finance & Commercial,GPA (C/O Montagu Evans LLP),300023523,10475.89,
BEIS,The Insolvency Service,17/09/2020,Estates - Property,Finance & Commercial,GPA (C/O Montagu Evans LLP),300023527,3458.80,
BEIS,The Insolvency Service,17/09/2020,Estates - Property,Finance & Commercial,GPA (C/O Montagu Evans LLP),300023532,3377.35,
BEIS,The Insolvency Service,17/09/2020,Estates - Property,Finance & Commercial,GPA (C/O Montagu Evans LLP),300023540,3202.06,
BEIS,The Insolvency Service,17/09/2020,Estates - Property,Finance & Commercial,GPA (C/O Montagu Evans LLP),300023541,12058.76,
BEIS,The Insolvency Service,17/09/2020,Estates - Property,Finance & Commercial,GPA (C/O Montagu Evans LLP),300023542,3297.49,
BEIS,The Insolvency Service,17/09/2020,Estates - Property,Finance & Commercial,GPA (C/O Montagu Evans LLP),300023543,4240.02,
BEIS,The Insolvency Service,17/09/2020,Estates - Property,Finance & Commercial,GPA (C/O Montagu Evans LLP),300023544,9508.30,
BEIS,The Insolvency Service,17/09/2020,Estates - Property,Finance & Commercial,GPA (C/O Montagu Evans LLP),300023545,3779.78,
BEIS,The Insolvency Service,17/09/2020,Estates - Property,Finance & Commercial,GPA (C/O Montagu Evans LLP),300023546,3533.35,
BEIS,The Insolvency Service,17/09/2020,Estates - Property,Finance & Commercial,GPA (C/O Montagu Evans LLP),300023547,4150.56,
BEIS,The Insolvency Service,17/09/2020,Estates - Property,Finance & Commercial,GPA (C/O Montagu Evans LLP),300023548,2668.38,
BEIS,The Insolvency Service,17/09/2020,Estates - Property,Finance & Commercial,GPA (C/O Montagu Evans LLP),300023549,3956.99,
BEIS,The Insolvency Service,17/09/2020,Estates - Property,Finance & Commercial,GPA (C/O Montagu Evans LLP),300023550,10048.97,
BEIS,The Insolvency Service,17/09/2020,Estates - Property,Finance & Commercial,GPA (C/O Montagu Evans LLP),300023551,4535.74,
BEIS,The Insolvency Service,17/09/2020,Estates - Property,Finance & Commercial,GPA (C/O Montagu Evans LLP),300023552,11409.96,
BEIS,The Insolvency Service,17/09/2020,Estates - Property,Finance & Commercial,GPA (C/O Montagu Evans LLP),300023553,3377.35,
BEIS,The Insolvency Service,17/09/2020,Estates - Property,Finance & Commercial,GPA (C/O Montagu Evans LLP),300023554,5873.27,
BEIS,The Insolvency Service,17/09/2020,Estates - Property,Finance & Commercial,GPA (C/O Montagu Evans LLP),300023555,4894.39,
BEIS,The Insolvency Service,17/09/2020,Estates - Property,Finance & Commercial,GPA (C/O Montagu Evans LLP),300023556,4052.82,
BEIS,The Insolvency Service,17/09/2020,Estates - Property,Finance & Commercial,GPA (C/O Montagu Evans LLP),300023557,3458.80,
BEIS,The Insolvency Service,17/09/2020,Estates - Property,Finance & Commercial,GPA (C/O Montagu Evans LLP),300023559,4240.02,
BEIS,The Insolvency Service,17/09/2020,Estates - Property,Finance & Commercial,GPA (C/O Montagu Evans LLP),300023562,10475.89,
BEIS,The Insolvency Service,17/09/2020,Estates - Property,Finance & Commercial,GPA (C/O Montagu Evans LLP),300023563,3297.49,
BEIS,The Insolvency Service,17/09/2020,Travel & Subsistence,Official Receiver Services,Staff Payment,900016119,1.40,
BEIS,The Insolvency Service,17/09/2020,Travel & Subsistence,Finance & Commercial,Staff Payment,900016158,4.50,
BEIS,The Insolvency Service,17/09/2020,Travel & Subsistence,Finance & Commercial,Staff Payment,900016158,15.00,
BEIS,The Insolvency Service,17/09/2020,Travel & Subsistence,Finance & Commercial,Staff Payment,900016158,5.00,
BEIS,The Insolvency Service,17/09/2020,Travel & Subsistence,Finance & Commercial,Staff Payment,900016158,21.60,
BEIS,The Insolvency Service,17/09/2020,Travel & Subsistence,Finance & Commercial,Staff Payment,900016146,5.00,
BEIS,The Insolvency Service,17/09/2020,Travel & Subsistence,Finance & Commercial,Staff Payment,900016146,9.89,
BEIS,The Insolvency Service,17/09/2020,Travel & Subsistence,Finance & Commercial,Staff Payment,900016146,14.54,
BEIS,The Insolvency Service,17/09/2020,Travel & Subsistence,Finance & Commercial,Staff Payment,900016146,144.00,
BEIS,The Insolvency Service,17/09/2020,Travel & Subsistence,Finance & Commercial,Staff Payment,900016147,96.30,
BEIS,The Insolvency Service,17/09/2020,Travel & Subsistence,Finance & Commercial,Staff Payment,900016147,5.00,
BEIS,The Insolvency Service,17/09/2020,Travel & Subsistence,Finance & Commercial,Staff Payment,900016148,9.00,
BEIS,The Insolvency Service,17/09/2020,Travel & Subsistence,Finance & Commercial,Staff Payment,900016148,5.00,
BEIS,The Insolvency Service,17/09/2020,Travel & Subsistence,Finance & Commercial,Staff Payment,900016148,9.93,
BEIS,The Insolvency Service,17/09/2020,Travel & Subsistence,Finance & Commercial,Staff Payment,900016148,15.00,
BEIS,The Insolvency Service,17/09/2020,Travel & Subsistence,Finance & Commercial,Staff Payment,900016148,135.00,
BEIS,The Insolvency Service,17/09/2020,Travel & Subsistence,Finance & Commercial,Staff Payment,900016148,19.00,
BEIS,The Insolvency Service,17/09/2020,Travel & Subsistence,Finance & Commercial,Staff Payment,900016149,4.95,
BEIS,The Insolvency Service,17/09/2020,Travel & Subsistence,Finance & Commercial,Staff Payment,900016149,5.00,
BEIS,The Insolvency Service,17/09/2020,Travel & Subsistence,Finance & Commercial,Staff Payment,900016149,5.00,
BEIS,The Insolvency Service,17/09/2020,Travel & Subsistence,Finance & Commercial,Staff Payment,900016149,15.00,
BEIS,The Insolvency Service,17/09/2020,Travel & Subsistence,Finance & Commercial,Staff Payment,900016149,102.00,
BEIS,The Insolvency Service,17/09/2020,Travel & Subsistence,Finance & Commercial,Staff Payment,900016149,9.00,
BEIS,The Insolvency Service,17/09/2020,Travel & Subsistence,Finance & Commercial,Staff Payment,900016149,17.50,
BEIS,The Insolvency Service,17/09/2020,Travel & Subsistence,Finance & Commercial,Staff Payment,900016166,110.00,
BEIS,The Insolvency Service,17/09/2020,Other Costs,Business Service Division,SUNDRY SUPPLIER,300023480,100.00,
BEIS,The Insolvency Service,18/09/2020,ICT,Digital Technology Services,Telesis Limited,300023586,201.60,221442453
BEIS,The Insolvency Service,18/09/2020,Staff Costs - Non-Perms,Finance & Commercial,Pertemps Recruitment Partnership Limited,300023589,564.48,844278800
BEIS,The Insolvency Service,18/09/2020,Legal - Costs of Civil Litigation Disqualifications,Legal Services Division,South Square,300023592,384.00,994806956
BEIS,The Insolvency Service,18/09/2020,Legal - Costs of Civil Litigation Disqualifications,Legal Services Division,Selbourne Chambers,300023594,816.00,1036299146
BEIS,The Insolvency Service,18/09/2020,Legal - Costs of Recovering Civil Costs Awarded,Investigations & Enforcement Services,Clarke Willmott Solicitors,300023600,142.64,129 9130 60
BEIS,The Insolvency Service,18/09/2020,Staff Costs - Non-Perms,Digital Technology Services,SmartSourcing,300023436,13200.00,788 5078 69
BEIS,The Insolvency Service,18/09/2020,Staff Costs - Non-Perms,Digital Technology Services,SmartSourcing,300023437,14400.00,788 5078 69
BEIS,The Insolvency Service,18/09/2020,Staff Costs - Non-Perms,Digital Technology Services,SmartSourcing,300023438,7500.00,788 5078 69
BEIS,The Insolvency Service,18/09/2020,ICT,Finance & Commercial,In-tend Ltd,300023467,3595.20,886 4167 79
BEIS,The Insolvency Service,18/09/2020,Estates - Property,Finance & Commercial,GPA (C/O Montagu Evans LLP),300023564,10048.97,
BEIS,The Insolvency Service,18/09/2020,Estates - Property,Finance & Commercial,GPA (C/O Montagu Evans LLP),300023565,2668.38,
BEIS,The Insolvency Service,18/09/2020,"Printing, Stationary & Postage",Business Service Division,Royal Mail,300023610,1005.00,
BEIS,The Insolvency Service,18/09/2020,"Printing, Stationary & Postage",Business Service Division,Royal Mail,300023611,1005.00,
BEIS,The Insolvency Service,18/09/2020,"Printing, Stationary & Postage",Business Service Division,Royal Mail,300023612,1005.00,
BEIS,The Insolvency Service,18/09/2020,"Printing, Stationary & Postage",Business Service Division,Royal Mail,300023613,1005.00,
BEIS,The Insolvency Service,18/09/2020,"Printing, Stationary & Postage",Business Service Division,Royal Mail,300023614,980.00,
BEIS,The Insolvency Service,18/09/2020,"Printing, Stationary & Postage",Business Service Division,Royal Mail,300023615,980.00,
BEIS,The Insolvency Service,18/09/2020,"Printing, Stationary & Postage",Business Service Division,Royal Mail,300023616,980.00,
BEIS,The Insolvency Service,18/09/2020,"Printing, Stationary & Postage",Business Service Division,Royal Mail,300023617,1005.00,
BEIS,The Insolvency Service,18/09/2020,"Printing, Stationary & Postage",Business Service Division,Royal Mail,300023618,980.00,
BEIS,The Insolvency Service,18/09/2020,Travel & Subsistence,Official Receiver Services,Staff Payment,900016169,59.99,
BEIS,The Insolvency Service,18/09/2020,Travel & Subsistence,Investigations & Enforcement Services,Staff Payment,900016161,10.00,
BEIS,The Insolvency Service,18/09/2020,Travel & Subsistence,Investigations & Enforcement Services,Staff Payment,900016161,15.00,
BEIS,The Insolvency Service,18/09/2020,Travel & Subsistence,Investigations & Enforcement Services,Staff Payment,900016161,3.75,
BEIS,The Insolvency Service,18/09/2020,Travel & Subsistence,Investigations & Enforcement Services,Staff Payment,900016161,12.50,
BEIS,The Insolvency Service,18/09/2020,Travel & Subsistence,Investigations & Enforcement Services,Staff Payment,900016162,63.00,
BEIS,The Insolvency Service,18/09/2020,Travel & Subsistence,Investigations & Enforcement Services,Staff Payment,900016162,63.00,
BEIS,The Insolvency Service,18/09/2020,Travel & Subsistence,Investigations & Enforcement Services,Staff Payment,900016171,113.93,
BEIS,The Insolvency Service,18/09/2020,Other Costs,Investigations & Enforcement Services/Legal Services Division,SUNDRY SUPPLIER,300023602,100.00,
BEIS,The Insolvency Service,21/09/2020,HR,Strategy & Change,The Financial Conduct Authority (FCA),300023632,4514.17,480879109
BEIS,The Insolvency Service,21/09/2020,HR,Strategy & Change,The Financial Conduct Authority (FCA),300023633,5988.29,480879109
BEIS,The Insolvency Service,21/09/2020,Legal - Costs of Criminal Prosecutions and Advice,Legal Services Division,18 Red Lion Court Chambers,300023539,1725.00,766793665
BEIS,The Insolvency Service,21/09/2020,Legal - Costs of Civil Litigation Disqualifications,Legal Services Division,18 St John Street Chambers,300023621,1122.00,826858289
BEIS,The Insolvency Service,21/09/2020,Legal - Costs of Civil Litigation Disqualifications,Legal Services Division,Enterprise Chambers,300023622,1296.00,938136900
BEIS,The Insolvency Service,21/09/2020,Training,People & Capability,Primavera People,300023631,500.00,2386742770
BEIS,The Insolvency Service,21/09/2020,Investigation & Enforcement,Official Receiver Services,Womble Bond Dickinson,300023598,307966.43,123 3926 27
BEIS,The Insolvency Service,21/09/2020,Investigation & Enforcement,Official Receiver Services,Womble Bond Dickinson,300023599,297054.60,123 3926 27
BEIS,The Insolvency Service,21/09/2020,Training,People & Capability,Capita Business Services Ltd,300023595,2309.57,618 1841 40
BEIS,The Insolvency Service,21/09/2020,Training,People & Capability,Capita Business Services Ltd,300023596,668.96,618 1841 40
BEIS,The Insolvency Service,21/09/2020,Estates - Property,Finance & Commercial,GPA (C/O Montagu Evans LLP),300023460,45071.27,
BEIS,The Insolvency Service,21/09/2020,Estates - Property,Finance & Commercial,GPA (C/O Montagu Evans LLP),300023460,186450.00,
BEIS,The Insolvency Service,21/09/2020,HR,People & Capability,Smart Employee Eyecare,300023597,228.00,
BEIS,The Insolvency Service,21/09/2020,Travel & Subsistence,People & Capability,Staff Payment,900016105,163.00,
BEIS,The Insolvency Service,21/09/2020,Travel & Subsistence,Investigations & Enforcement Services,Staff Payment,900016159,28.84,
BEIS,The Insolvency Service,21/09/2020,Travel & Subsistence,Investigations & Enforcement Services,Staff Payment,900016159,10.64,
BEIS,The Insolvency Service,21/09/2020,Travel & Subsistence,Investigations & Enforcement Services,Staff Payment,900016159,2.06,
BEIS,The Insolvency Service,21/09/2020,Travel & Subsistence,Investigations & Enforcement Services,Staff Payment,900016159,1.52,
BEIS,The Insolvency Service,21/09/2020,Travel & Subsistence,Investigations & Enforcement Services,Staff Payment,900016159,11.03,
BEIS,The Insolvency Service,21/09/2020,Travel & Subsistence,Investigations & Enforcement Services,Staff Payment,900016159,5.00,
BEIS,The Insolvency Service,21/09/2020,Travel & Subsistence,Investigations & Enforcement Services,Staff Payment,900016159,5.00,
BEIS,The Insolvency Service,21/09/2020,Travel & Subsistence,Investigations & Enforcement Services,Staff Payment,900016159,18.54,
BEIS,The Insolvency Service,21/09/2020,Travel & Subsistence,Investigations & Enforcement Services,Staff Payment,900016159,6.84,
BEIS,The Insolvency Service,21/09/2020,Travel & Subsistence,Investigations & Enforcement Services,Staff Payment,900016159,12.36,
BEIS,The Insolvency Service,21/09/2020,Travel & Subsistence,Investigations & Enforcement Services,Staff Payment,900016159,4.56,
BEIS,The Insolvency Service,21/09/2020,Travel & Subsistence,Investigations & Enforcement Services,Staff Payment,900016159,7.97,
BEIS,The Insolvency Service,21/09/2020,Travel & Subsistence,Investigations & Enforcement Services,Staff Payment,900016159,5.00,
BEIS,The Insolvency Service,21/09/2020,Travel & Subsistence,Investigations & Enforcement Services,Staff Payment,900016159,14.95,
BEIS,The Insolvency Service,21/09/2020,Travel & Subsistence,Investigations & Enforcement Services,Staff Payment,900016159,5.00,
BEIS,The Insolvency Service,21/09/2020,Travel & Subsistence,Investigations & Enforcement Services,Staff Payment,900016159,5.00,
BEIS,The Insolvency Service,21/09/2020,Travel & Subsistence,Investigations & Enforcement Services,Staff Payment,900016159,3.15,
BEIS,The Insolvency Service,21/09/2020,Travel & Subsistence,Investigations & Enforcement Services,Staff Payment,900016159,22.95,
BEIS,The Insolvency Service,21/09/2020,Travel & Subsistence,Investigations & Enforcement Services,Staff Payment,900016159,49.50,
BEIS,The Insolvency Service,21/09/2020,Travel & Subsistence,Investigations & Enforcement Services,Staff Payment,900016159,71.10,
BEIS,The Insolvency Service,21/09/2020,Travel & Subsistence,Investigations & Enforcement Services,Staff Payment,900016159,2.25,
BEIS,The Insolvency Service,21/09/2020,Travel & Subsistence,Investigations & Enforcement Services,Staff Payment,900016159,2.70,
BEIS,The Insolvency Service,21/09/2020,Travel & Subsistence,Investigations & Enforcement Services,Staff Payment,900016159,3.15,
BEIS,The Insolvency Service,21/09/2020,Travel & Subsistence,Investigations & Enforcement Services,Staff Payment,900016159,4.50,
BEIS,The Insolvency Service,21/09/2020,Travel & Subsistence,Investigations & Enforcement Services,Staff Payment,900016159,63.00,
BEIS,The Insolvency Service,21/09/2020,Travel & Subsistence,Investigations & Enforcement Services,Staff Payment,900016159,45.90,
BEIS,The Insolvency Service,21/09/2020,Travel & Subsistence,Investigations & Enforcement Services,Staff Payment,900016159,1.35,
BEIS,The Insolvency Service,21/09/2020,Travel & Subsistence,Investigations & Enforcement Services,Staff Payment,900016159,13.05,
BEIS,The Insolvency Service,21/09/2020,Travel & Subsistence,Investigations & Enforcement Services,Staff Payment,900016159,24.30,
BEIS,The Insolvency Service,21/09/2020,Travel & Subsistence,Finance & Commercial,Staff Payment,900016137,15.00,
BEIS,The Insolvency Service,21/09/2020,Travel & Subsistence,Finance & Commercial,Staff Payment,900016150,31.95,
BEIS,The Insolvency Service,21/09/2020,Travel & Subsistence,Finance & Commercial,Staff Payment,900016150,31.95,
BEIS,The Insolvency Service,21/09/2020,Travel & Subsistence,Finance & Commercial,Staff Payment,900016150,15.00,
BEIS,The Insolvency Service,21/09/2020,Travel & Subsistence,Finance & Commercial,Staff Payment,900016178,44.10,
BEIS,The Insolvency Service,21/09/2020,Travel & Subsistence,Finance & Commercial,Staff Payment,900016179,44.10,
BEIS,The Insolvency Service,21/09/2020,Travel & Subsistence,Finance & Commercial,Staff Payment,900016179,15.00,
BEIS,The Insolvency Service,21/09/2020,Travel & Subsistence,Finance & Commercial,Staff Payment,900016179,5.00,
BEIS,The Insolvency Service,21/09/2020,Travel & Subsistence,Investigations & Enforcement Services,Staff Payment,900016172,2.00,
BEIS,The Insolvency Service,21/09/2020,Travel & Subsistence,Investigations & Enforcement Services,Staff Payment,900016172,4.68,
BEIS,The Insolvency Service,21/09/2020,Travel & Subsistence,Investigations & Enforcement Services,Staff Payment,900016172,5.00,
BEIS,The Insolvency Service,21/09/2020,Travel & Subsistence,Investigations & Enforcement Services,Staff Payment,900016172,3.15,
BEIS,The Insolvency Service,21/09/2020,Travel & Subsistence,Investigations & Enforcement Services,Staff Payment,900016172,11.25,
BEIS,The Insolvency Service,21/09/2020,Travel & Subsistence,Investigations & Enforcement Services,Staff Payment,900016172,5.85,
BEIS,The Insolvency Service,21/09/2020,Travel & Subsistence,Investigations & Enforcement Services,Staff Payment,900016172,12.60,
BEIS,The Insolvency Service,21/09/2020,Travel & Subsistence,Investigations & Enforcement Services,Staff Payment,900016172,19.80,
BEIS,The Insolvency Service,21/09/2020,Travel & Subsistence,Investigations & Enforcement Services,Staff Payment,900016172,9.90,
BEIS,The Insolvency Service,21/09/2020,Travel & Subsistence,Official Receiver Services,Staff Payment,900016163,2.10,
BEIS,The Insolvency Service,21/09/2020,Travel & Subsistence,Official Receiver Services,Staff Payment,900016163,0.65,
BEIS,The Insolvency Service,21/09/2020,Travel & Subsistence,People & Capability,Staff Payment,900016075,163.00,
BEIS,The Insolvency Service,21/09/2020,Travel & Subsistence,Legal Services Division,Staff Payment,900015949,52.20,
BEIS,The Insolvency Service,21/09/2020,Travel & Subsistence,Legal Services Division,Staff Payment,900015949,4.90,
BEIS,The Insolvency Service,21/09/2020,Other Costs,Business Service Division,SUNDRY SUPPLIER,300023619,250.00,
BEIS,The Insolvency Service,21/09/2020,Other Costs,Business Service Division,SUNDRY SUPPLIER,300023620,250.00,
BEIS,The Insolvency Service,22/09/2020,Legal - Costs of Criminal Prosecutions and Advice,Investigations & Enforcement Services,Mendip Media Group Ltd (Now Trading As Appen),300023683,312.05,609546425
BEIS,The Insolvency Service,22/09/2020,Legal - Costs of Criminal Prosecutions and Advice,Investigations & Enforcement Services,Appropriate Adult Service,300023362,125.10,861446224
BEIS,The Insolvency Service,22/09/2020,ICT,Digital Technology Services,Bt Telephone Payment Centre,300023628,29524.06,245 7193 48
BEIS,The Insolvency Service,22/09/2020,Training,Finance & Commercial,Capita Business Services Ltd,300023624,421.63,618 1841 40
BEIS,The Insolvency Service,22/09/2020,Staff Costs - Non-Perms,Digital Technology Services,SmartSourcing,300023435,6900.00,788 5078 69
BEIS,The Insolvency Service,22/09/2020,Staff Costs - Non-Perms,Finance & Commercial,Allen Lane Limited,300023587,10800.00,835 9709 85
BEIS,The Insolvency Service,22/09/2020,ICT,Strategy & Change,Experian Ltd,300023378,12060.00,
BEIS,The Insolvency Service,22/09/2020,Other Costs,Official Receiver Services,Insolvency Service,300023608,252.00,
BEIS,The Insolvency Service,22/09/2020,ICT,Strategy & Change,Ricoh Uk Limited,300023469,2592.00,
BEIS,The Insolvency Service,22/09/2020,ICT,Strategy & Change,Ricoh Uk Limited,300023490,384.00,
BEIS,The Insolvency Service,22/09/2020,ICT,Strategy & Change,Ricoh Uk Limited,300023491,226.20,
BEIS,The Insolvency Service,22/09/2020,ICT,Strategy & Change,Ricoh Uk Limited,300023492,226.20,
BEIS,The Insolvency Service,22/09/2020,ICT,Strategy & Change,Ricoh Uk Limited,300023493,226.20,
BEIS,The Insolvency Service,22/09/2020,ICT,Strategy & Change,Ricoh Uk Limited,300023494,226.20,
BEIS,The Insolvency Service,22/09/2020,Travel & Subsistence,Official Receiver Services,Staff Payment,900016180,1.45,
BEIS,The Insolvency Service,22/09/2020,Travel & Subsistence,Official Receiver Services,Staff Payment,900016180,0.65,
BEIS,The Insolvency Service,22/09/2020,Travel & Subsistence,Official Receiver Services,Staff Payment,900016180,0.76,
BEIS,The Insolvency Service,22/09/2020,Travel & Subsistence,Investigations & Enforcement Services,Staff Payment,900016154,5.00,
BEIS,The Insolvency Service,22/09/2020,Travel & Subsistence,Investigations & Enforcement Services,Staff Payment,900016154,120.60,
BEIS,The Insolvency Service,22/09/2020,Travel & Subsistence,Investigations & Enforcement Services,Staff Payment,900016154,2.50,
BEIS,The Insolvency Service,22/09/2020,Travel & Subsistence,Investigations & Enforcement Services,Staff Payment,900016173,15.00,
BEIS,The Insolvency Service,22/09/2020,Travel & Subsistence,Digital Technology Services,Staff Payment,900016183,20.00,
BEIS,The Insolvency Service,22/09/2020,Travel & Subsistence,Digital Technology Services,Staff Payment,900016183,83.50,
BEIS,The Insolvency Service,22/09/2020,Travel & Subsistence,Digital Technology Services,Staff Payment,900016183,71.17,
BEIS,The Insolvency Service,22/09/2020,Travel & Subsistence,Digital Technology Services,Staff Payment,900016183,99.15,
BEIS,The Insolvency Service,22/09/2020,Travel & Subsistence,Digital Technology Services,Staff Payment,900016183,3.38,
BEIS,The Insolvency Service,22/09/2020,Travel & Subsistence,Digital Technology Services,Staff Payment,900016183,4.00,
BEIS,The Insolvency Service,22/09/2020,Travel & Subsistence,Digital Technology Services,Staff Payment,900016183,15.00,
BEIS,The Insolvency Service,22/09/2020,Estates - Property,Finance & Commercial,Vickery Holman,300023653,3414.55,
BEIS,The Insolvency Service,22/09/2020,Estates - Property,Finance & Commercial,Vickery Holman,300023654,7041.11,
BEIS,The Insolvency Service,23/09/2020,Legal - Costs of Civil Litigation Disqualifications,Legal Services Division,Enterprise Chambers,300023724,288.00,130448638
BEIS,The Insolvency Service,23/09/2020,Legal - Costs of Civil Litigation Disqualifications,Legal Services Division,Selbourne Chambers,300023723,768.00,1036299146
BEIS,The Insolvency Service,23/09/2020,Off-Site Storage,Official Receiver Services,Archive Management Systems Ltd,300023720,755.22,292 5560 40
BEIS,The Insolvency Service,23/09/2020,Staff Costs - Non-Perms,Strategy & Change,SmartSourcing,300023560,8870.40,788 5078 69
BEIS,The Insolvency Service,23/09/2020,Staff Costs - Non-Perms,Strategy & Change,SmartSourcing,300023561,2956.80,788 5078 69
BEIS,The Insolvency Service,23/09/2020,Travel & Subsistence,Finance & Commercial,Staff Payment,900016177,10.00,
BEIS,The Insolvency Service,23/09/2020,Travel & Subsistence,Finance & Commercial,Staff Payment,900016177,15.00,
BEIS,The Insolvency Service,23/09/2020,Travel & Subsistence,Finance & Commercial,Staff Payment,900016177,5.00,
BEIS,The Insolvency Service,23/09/2020,Travel & Subsistence,Investigations & Enforcement Services,Staff Payment,900016184,93.60,
BEIS,The Insolvency Service,23/09/2020,Travel & Subsistence,Finance & Commercial,Staff Payment,900016175,5.00,
BEIS,The Insolvency Service,23/09/2020,Travel & Subsistence,Finance & Commercial,Staff Payment,900016175,15.00,
BEIS,The Insolvency Service,23/09/2020,Travel & Subsistence,Finance & Commercial,Staff Payment,900016175,9.90,
BEIS,The Insolvency Service,23/09/2020,Travel & Subsistence,Finance & Commercial,Staff Payment,900016175,9.00,
BEIS,The Insolvency Service,23/09/2020,Travel & Subsistence,Finance & Commercial,Staff Payment,900016175,130.00,
BEIS,The Insolvency Service,23/09/2020,Legal - Costs of Civil Litigation Disqualifications,Legal Services Division,SUNDRY SUPPLIER,300023604,1620.00,
BEIS,The Insolvency Service,23/09/2020,Training,Strategy & Change,SUNDRY SUPPLIER,300023607,595.00,
BEIS,The Insolvency Service,24/09/2020,ICT,Digital Technology Services,Insight Direct (UK) Ltd,300023626,69.05,746075129
BEIS,The Insolvency Service,24/09/2020,ICT,Digital Technology Services,Insight Direct (UK) Ltd,300023627,725.96,746075129
BEIS,The Insolvency Service,24/09/2020,Legal - Costs of Civil Litigation Disqualifications,Legal Services Division,Selbourne Chambers,300023750,336.00,1036299146
BEIS,The Insolvency Service,24/09/2020,Off-Site Storage,Business Service Division,Iron Mountain (Uk) Ltd,300023716,285.59,607 9375 16
BEIS,The Insolvency Service,24/09/2020,Off-Site Storage,Business Service Division,Iron Mountain (Uk) Ltd,300023717,177.94,607 9375 16
BEIS,The Insolvency Service,24/09/2020,Off-Site Storage,Business Service Division,Iron Mountain (Uk) Ltd,300023718,285.59,607 9375 16
BEIS,The Insolvency Service,24/09/2020,Off-Site Storage,Business Service Division,Iron Mountain (Uk) Ltd,300023719,177.94,607 9375 16
BEIS,The Insolvency Service,24/09/2020,Estates - Property,Finance & Commercial,Cross Stone Estates Limited,300023695,486.46,783 6808 83
BEIS,The Insolvency Service,24/09/2020,"Legal, Translation & Consultancy",Strategy & Change,Gowling Wragge Lawrence Graham  & Co,300023745,9613.51,858 698 838
BEIS,The Insolvency Service,24/09/2020,"Legal, Translation & Consultancy",Finance & Commercial,Deloitte LLP,300023361,123206.00,
BEIS,The Insolvency Service,24/09/2020,Legal - Outsourced Investigation,Official Receiver Services,Pricewaterhouse Coopers LLP,300023725,307922.40,
BEIS,The Insolvency Service,24/09/2020,ICT,Digital Technology Services,Vodafone - Cable & Wireless Communications,300023753,945.36,
BEIS,The Insolvency Service,24/09/2020,Estates - Property,Finance & Commercial,GPA (C/O Montagu Evans LLP),300023890,2424.21,
BEIS,The Insolvency Service,24/09/2020,ICT,Strategy & Change,Ricoh Uk Limited,300023744,20.40,
BEIS,The Insolvency Service,24/09/2020,ICT,Strategy & Change,Ricoh Uk Limited,300023748,12.00,
BEIS,The Insolvency Service,24/09/2020,ICT,Strategy & Change,Ricoh Uk Limited,300023749,226.20,
BEIS,The Insolvency Service,24/09/2020,Travel & Subsistence,Business Service Division,Staff Payment,900016189,11.64,
BEIS,The Insolvency Service,24/09/2020,Travel & Subsistence,Business Service Division,Staff Payment,900016189,4.00,
BEIS,The Insolvency Service,24/09/2020,Travel & Subsistence,Official Receiver Services,Staff Payment,900016195,15.00,
BEIS,The Insolvency Service,24/09/2020,Travel & Subsistence,Official Receiver Services,Staff Payment,900016195,30.00,
BEIS,The Insolvency Service,24/09/2020,Travel & Subsistence,Official Receiver Services,Staff Payment,900016193,4.80,
BEIS,The Insolvency Service,24/09/2020,Training,Legal Services Division,SUNDRY SUPPLIER,300023742,72.00,
BEIS,The Insolvency Service,24/09/2020,Legal - Costs of Criminal Prosecutions and Advice,Legal Services Division,SUNDRY SUPPLIER,300023743,733.08,
BEIS,The Insolvency Service,25/09/2020,Training,Digital Technology Services,In > Professional Development,300023777,1650.00,285136002
BEIS,The Insolvency Service,25/09/2020,ICT,Digital Technology Services,Insight Direct (UK) Ltd,300023779,100589.76,746075129
BEIS,The Insolvency Service,25/09/2020,Staff Costs - Non-Perms,Finance & Commercial,Pertemps Recruitment Partnership Limited,300023780,564.48,844278800
BEIS,The Insolvency Service,25/09/2020,Staff Costs - Non-Perms,Finance & Commercial,Pertemps Recruitment Partnership Limited,300023900,564.48,844278800
BEIS,The Insolvency Service,25/09/2020,ICT,Digital Technology Services,Advanced 365 Limited,300023795,15151.78,927547983
BEIS,The Insolvency Service,25/09/2020,Training,Business Service Division,Capita Business Services Ltd,300023784,214.12,618 1841 40
BEIS,The Insolvency Service,25/09/2020,Training,Business Service Division,Capita Business Services Ltd,300023792,214.12,618 1841 40
BEIS,The Insolvency Service,25/09/2020,Other Costs,Official Receiver Services,The Stationery Office Ltd,300023721,84.00,
BEIS,The Insolvency Service,25/09/2020,Other Costs,Official Receiver Services,The Stationery Office Ltd,300023722,84.00,
BEIS,The Insolvency Service,25/09/2020,Estates - Property,Strategy & Change,Avison Young,300023778,1800.00,
BEIS,The Insolvency Service,25/09/2020,"Printing, Stationary & Postage",Business Service Division,Quadient UK Limited,300023623,14713.32,
BEIS,The Insolvency Service,25/09/2020,"Printing, Stationary & Postage",Business Service Division,Quadient UK Limited,300023629,23484.86,
BEIS,The Insolvency Service,25/09/2020,Travel & Subsistence,Official Receiver Services,Staff Payment,900016197,3.50,
BEIS,The Insolvency Service,25/09/2020,Travel & Subsistence,Official Receiver Services,Staff Payment,900016197,4.00,
BEIS,The Insolvency Service,25/09/2020,Travel & Subsistence,Investigations & Enforcement Services,Staff Payment,900016199,129.00,
BEIS,The Insolvency Service,25/09/2020,Travel & Subsistence,Official Receiver Services,Staff Payment,900016186,8.99,
BEIS,The Insolvency Service,25/09/2020,Travel & Subsistence,Official Receiver Services,Staff Payment,900016181,3.50,
BEIS,The Insolvency Service,25/09/2020,Travel & Subsistence,Official Receiver Services,Staff Payment,900016181,2.28,
BEIS,The Insolvency Service,25/09/2020,Travel & Subsistence,Official Receiver Services,Staff Payment,900016182,49.50,
BEIS,The Insolvency Service,25/09/2020,Travel & Subsistence,Official Receiver Services,Staff Payment,900016182,1.00,
BEIS,The Insolvency Service,25/09/2020,Travel & Subsistence,Official Receiver Services,Staff Payment,900016182,3.60,
BEIS,The Insolvency Service,25/09/2020,Travel & Subsistence,Official Receiver Services,Staff Payment,900016176,39.00,
BEIS,The Insolvency Service,25/09/2020,Travel & Subsistence,Official Receiver Services,Staff Payment,900016176,2.00,
BEIS,The Insolvency Service,28/09/2020,Staff Costs - Non-Perms,Digital Technology Services,Edifit Limited,300023897,36551.26,140698992
BEIS,The Insolvency Service,28/09/2020,Investigation & Enforcement,Investigations & Enforcement Services,Datel Computing Limited,300023590,268.80,323082982
BEIS,The Insolvency Service,28/09/2020,Off-Site Storage,Official Receiver Services,Restore Plc (Records Management),300023746,7166.39,843863011
BEIS,The Insolvency Service,28/09/2020,Training,People & Capability,Capita Business Services Ltd,300023790,5742.62,618 1841 40
BEIS,The Insolvency Service,28/09/2020,"Legal, Translation & Consultancy",Strategy & Change,Gowling Wragge Lawrence Graham  & Co,300023786,5403.60,858 698 838
BEIS,The Insolvency Service,28/09/2020,ICT,Digital Technology Services,Vodafone - Cable & Wireless Communications,300023751,240.00,
BEIS,The Insolvency Service,28/09/2020,ICT,Digital Technology Services,Vodafone - Cable & Wireless Communications,300023752,240.00,
BEIS,The Insolvency Service,28/09/2020,Estates - Property,Strategy & Change,Avison Young,300023787,6000.00,
BEIS,The Insolvency Service,28/09/2020,Travel & Subsistence,Investigations & Enforcement Services,Staff Payment,900016187,5.00,
BEIS,The Insolvency Service,28/09/2020,Travel & Subsistence,Investigations & Enforcement Services,Staff Payment,900016187,4.18,
BEIS,The Insolvency Service,28/09/2020,Travel & Subsistence,Investigations & Enforcement Services,Staff Payment,900016187,15.00,
BEIS,The Insolvency Service,28/09/2020,Travel & Subsistence,Investigations & Enforcement Services,Staff Payment,900016187,63.00,
BEIS,The Insolvency Service,28/09/2020,Travel & Subsistence,Investigations & Enforcement Services,Staff Payment,900016187,63.00,
BEIS,The Insolvency Service,28/09/2020,Travel & Subsistence,Investigations & Enforcement Services,Staff Payment,900015868,40.00,
BEIS,The Insolvency Service,28/09/2020,Travel & Subsistence,Investigations & Enforcement Services,Staff Payment,900015868,12.35,
BEIS,The Insolvency Service,28/09/2020,Travel & Subsistence,Investigations & Enforcement Services,Staff Payment,900015868,7.35,
BEIS,The Insolvency Service,28/09/2020,Travel & Subsistence,Investigations & Enforcement Services,Staff Payment,900015868,12.00,
BEIS,The Insolvency Service,28/09/2020,Travel & Subsistence,Investigations & Enforcement Services,Staff Payment,900015868,7.20,
BEIS,The Insolvency Service,28/09/2020,Travel & Subsistence,Investigations & Enforcement Services,Staff Payment,900015868,22.50,
BEIS,The Insolvency Service,28/09/2020,Travel & Subsistence,Investigations & Enforcement Services,Staff Payment,900015868,62.55,
BEIS,The Insolvency Service,28/09/2020,Travel & Subsistence,Investigations & Enforcement Services,Staff Payment,900015868,39.15,
BEIS,The Insolvency Service,28/09/2020,Travel & Subsistence,Investigations & Enforcement Services,Staff Payment,900016131,55.80,
BEIS,The Insolvency Service,28/09/2020,Travel & Subsistence,Investigations & Enforcement Services,Staff Payment,900016131,55.80,
BEIS,The Insolvency Service,28/09/2020,Travel & Subsistence,Investigations & Enforcement Services,Staff Payment,900016204,4.12,
BEIS,The Insolvency Service,28/09/2020,Travel & Subsistence,Investigations & Enforcement Services,Staff Payment,900016204,80.04,
BEIS,The Insolvency Service,29/09/2020,Staff Costs - Non-Perms,Strategy & Change,Daisy Corporate Services Trading Limited,300023755,4230.00,722471355
BEIS,The Insolvency Service,29/09/2020,Training,People & Capability,Tms Development International Ltd,300023781,47.00,551 6500 63
BEIS,The Insolvency Service,29/09/2020,Training,People & Capability,Tms Development International Ltd,300023793,1704.00,551 6500 63
BEIS,The Insolvency Service,29/09/2020,Training,People & Capability,KPMG LLP,300023788,2500.00,
BEIS,The Insolvency Service,29/09/2020,Training,People & Capability,KPMG LLP,300023798,2500.00,
BEIS,The Insolvency Service,29/09/2020,Other Costs,Official Receiver Services,The Stationery Office Ltd,300023583,84.00,
BEIS,The Insolvency Service,29/09/2020,Other Costs,Official Receiver Services,The Stationery Office Ltd,300023584,168.00,
BEIS,The Insolvency Service,29/09/2020,Estates - Property,Finance & Commercial,GPA (C/O Montagu Evans LLP),300023818,10475.88,
BEIS,The Insolvency Service,29/09/2020,Estates - Property,Finance & Commercial,GPA (C/O Montagu Evans LLP),300023819,3377.36,
BEIS,The Insolvency Service,29/09/2020,Estates - Property,Finance & Commercial,GPA (C/O Montagu Evans LLP),300023820,4894.39,
BEIS,The Insolvency Service,29/09/2020,Estates - Property,Finance & Commercial,GPA (C/O Montagu Evans LLP),300023821,3458.80,
BEIS,The Insolvency Service,29/09/2020,Estates - Property,Finance & Commercial,GPA (C/O Montagu Evans LLP),300023822,3297.49,
BEIS,The Insolvency Service,29/09/2020,Estates - Property,Finance & Commercial,GPA (C/O Montagu Evans LLP),300023823,9508.30,
BEIS,The Insolvency Service,29/09/2020,Estates - Property,Finance & Commercial,GPA (C/O Montagu Evans LLP),300023824,3779.78,
BEIS,The Insolvency Service,29/09/2020,Estates - Property,Finance & Commercial,GPA (C/O Montagu Evans LLP),300023825,10048.97,
BEIS,The Insolvency Service,29/09/2020,Estates - Property,Finance & Commercial,GPA (C/O Montagu Evans LLP),300023826,3533.34,
BEIS,The Insolvency Service,29/09/2020,Estates - Property,Finance & Commercial,GPA (C/O Montagu Evans LLP),300023827,2668.38,
BEIS,The Insolvency Service,29/09/2020,ICT,Strategy & Change,Ricoh Uk Limited,300023809,2496.00,
BEIS,The Insolvency Service,29/09/2020,Travel & Subsistence,Investigations & Enforcement Services,Staff Payment,900016190,7.00,
BEIS,The Insolvency Service,29/09/2020,Travel & Subsistence,Finance & Commercial,Staff Payment,900016211,10.00,
BEIS,The Insolvency Service,29/09/2020,Travel & Subsistence,Finance & Commercial,Staff Payment,900016211,15.00,
BEIS,The Insolvency Service,29/09/2020,Travel & Subsistence,Finance & Commercial,Staff Payment,900016211,5.00,
BEIS,The Insolvency Service,29/09/2020,Travel & Subsistence,Investigations & Enforcement Services,Staff Payment,900016136,7.00,
BEIS,The Insolvency Service,29/09/2020,Travel & Subsistence,Investigations & Enforcement Services,Staff Payment,900016136,11.20,
BEIS,The Insolvency Service,29/09/2020,Travel & Subsistence,Investigations & Enforcement Services,Staff Payment,900016136,4.74,
BEIS,The Insolvency Service,29/09/2020,Travel & Subsistence,Investigations & Enforcement Services,Staff Payment,900016196,14.00,
BEIS,The Insolvency Service,29/09/2020,Travel & Subsistence,Investigations & Enforcement Services,Staff Payment,900016194,5.00,
BEIS,The Insolvency Service,29/09/2020,Travel & Subsistence,Investigations & Enforcement Services,Staff Payment,900016194,106.65,
BEIS,The Insolvency Service,29/09/2020,Travel & Subsistence,Investigations & Enforcement Services,Staff Payment,900016194,53.10,
BEIS,The Insolvency Service,29/09/2020,Travel & Subsistence,Investigations & Enforcement Services,Staff Payment,900016194,69.30,
BEIS,The Insolvency Service,29/09/2020,Travel & Subsistence,Investigations & Enforcement Services,Staff Payment,900016194,10.56,
BEIS,The Insolvency Service,29/09/2020,Travel & Subsistence,Investigations & Enforcement Services,Staff Payment,900016194,5.00,
BEIS,The Insolvency Service,29/09/2020,Travel & Subsistence,Official Receiver Services,Staff Payment,900016157,22.35,
BEIS,The Insolvency Service,29/09/2020,Travel & Subsistence,Official Receiver Services,Staff Payment,900016157,3.28,
BEIS,The Insolvency Service,29/09/2020,Travel & Subsistence,Official Receiver Services,Staff Payment,900016157,8.82,
BEIS,The Insolvency Service,29/09/2020,Travel & Subsistence,Investigations & Enforcement Services,Staff Payment,900016209,2.06,
BEIS,The Insolvency Service,29/09/2020,Travel & Subsistence,Investigations & Enforcement Services,Staff Payment,900016210,8.24,
BEIS,The Insolvency Service,29/09/2020,Travel & Subsistence,Investigations & Enforcement Services,Staff Payment,900016210,75.15,
BEIS,The Insolvency Service,29/09/2020,Travel & Subsistence,Investigations & Enforcement Services,Staff Payment,900016210,8.98,
BEIS,The Insolvency Service,29/09/2020,Travel & Subsistence,Investigations & Enforcement Services,Staff Payment,900016210,10.90,
BEIS,The Insolvency Service,29/09/2020,Travel & Subsistence,Official Receiver Services,Staff Payment,900016203,38.00,
BEIS,The Insolvency Service,29/09/2020,Travel & Subsistence,Investigations & Enforcement Services,Staff Payment,900016214,5.00,
BEIS,The Insolvency Service,29/09/2020,Travel & Subsistence,Official Receiver Services,Staff Payment,900016215,18.00,
BEIS,The Insolvency Service,29/09/2020,Travel & Subsistence,Finance & Commercial,Staff Payment,900016216,5.00,
BEIS,The Insolvency Service,29/09/2020,Travel & Subsistence,Finance & Commercial,Staff Payment,900016216,5.00,
BEIS,The Insolvency Service,29/09/2020,Travel & Subsistence,Finance & Commercial,Staff Payment,900016216,15.00,
BEIS,The Insolvency Service,29/09/2020,Travel & Subsistence,Finance & Commercial,Staff Payment,900016216,5.00,
BEIS,The Insolvency Service,29/09/2020,Travel & Subsistence,Finance & Commercial,Staff Payment,900016216,9.00,
BEIS,The Insolvency Service,29/09/2020,Travel & Subsistence,Finance & Commercial,Staff Payment,900016216,194.00,
BEIS,The Insolvency Service,29/09/2020,Training,Investigations & Enforcement Services,SUNDRY SUPPLIER,300023799,660.00,
BEIS,The Insolvency Service,29/09/2020,Legal - Costs of Criminal Prosecutions and Advice,Legal Services Division,SUNDRY SUPPLIER,300023863,8000.00,
BEIS,The Insolvency Service,30/09/2020,Other Costs,Official Receiver Services,John Pye & Sons Limited,300023864,190.50,117777249
BEIS,The Insolvency Service,30/09/2020,Other Costs,Official Receiver Services,John Pye & Sons Limited,300023865,190.50,117777249
BEIS,The Insolvency Service,30/09/2020,Staff Costs - Non-Perms,Digital Technology Services,Edifit Limited,300023898,6412.50,140698992
BEIS,The Insolvency Service,30/09/2020,Legal - Costs of Criminal Prosecutions and Advice,Legal Services Division,Citadel Chambers,300023855,1496.00,241217250
BEIS,The Insolvency Service,30/09/2020,Legal - Costs of Criminal Prosecutions and Advice,Legal Services Division,Citadel Chambers,300023856,240.00,241217250
BEIS,The Insolvency Service,30/09/2020,Legal - Costs of Criminal Prosecutions and Advice,Legal Services Division,Citadel Chambers,300023857,96.00,241217250
BEIS,The Insolvency Service,30/09/2020,Legal - Costs of Criminal Prosecutions and Advice,Legal Services Division,Citadel Chambers,300023858,96.00,241217250
BEIS,The Insolvency Service,30/09/2020,"Legal, Translation & Consultancy",Investigations & Enforcement Services,K International Plc,300023789,52.88,600413800
BEIS,The Insolvency Service,30/09/2020,ICT,Digital Technology Services,Daisy Corporate Services Trading Limited,300023756,44450.00,722471355
BEIS,The Insolvency Service,30/09/2020,Legal - Costs of Civil Litigation Disqualifications,Legal Services Division,5 Stone Buildings,300023870,480.00,998486332
BEIS,The Insolvency Service,30/09/2020,Staff Costs - Non-Perms,Finance & Commercial,ALEXANDER MANN SOLUTIONS,300023297,-747.43,7444926120
BEIS,The Insolvency Service,30/09/2020,Staff Costs - Non-Perms,Finance & Commercial,ALEXANDER MANN SOLUTIONS,300023860,-1269.48,7444926120
BEIS,The Insolvency Service,30/09/2020,Staff Costs - Non-Perms,Finance & Commercial,ALEXANDER MANN SOLUTIONS,300023861,-649.56,7444926120
BEIS,The Insolvency Service,30/09/2020,Staff Costs - Non-Perms,Finance & Commercial,ALEXANDER MANN SOLUTIONS,300023866,39008.41,7444926120
BEIS,The Insolvency Service,30/09/2020,Staff Costs - Non-Perms,Finance & Commercial,ALEXANDER MANN SOLUTIONS,300023867,57495.71,7444926120
BEIS,The Insolvency Service,30/09/2020,Staff Costs - Non-Perms,Finance & Commercial,ALEXANDER MANN SOLUTIONS,300023868,30647.41,7444926120
BEIS,The Insolvency Service,30/09/2020,ICT,Strategy & Change,Unit4 Business Software Ltd,300023869,6000.00,567 5547 96
BEIS,The Insolvency Service,30/09/2020,Off-Site Storage,Business Service Division,Iron Mountain (Uk) Ltd,300023794,36063.56,607 9375 16
BEIS,The Insolvency Service,30/09/2020,HR,People & Capability,Cabinet Office,300023876,10.80,
BEIS,The Insolvency Service,30/09/2020,HR,People & Capability,Cabinet Office,300023876,23.00,
BEIS,The Insolvency Service,30/09/2020,ICT,Digital Technology Services,Ricoh Uk Limited,300023796,18367.04,
BEIS,The Insolvency Service,30/09/2020,Travel & Subsistence,Official Receiver Services,Staff Payment,900016217,1.83,
BEIS,The Insolvency Service,30/09/2020,Travel & Subsistence,Official Receiver Services,Staff Payment,900016217,0.76,
BEIS,The Insolvency Service,30/09/2020,Travel & Subsistence,Official Receiver Services,Staff Payment,900016217,0.65,
BEIS,The Insolvency Service,30/09/2020,Travel & Subsistence,Official Receiver Services,Staff Payment,900016217,0.65,
BEIS,The Insolvency Service,30/09/2020,Travel & Subsistence,Finance & Commercial,Staff Payment,900016165,90.00,
BEIS,The Insolvency Service,30/09/2020,Travel & Subsistence,Digital Technology Services,Staff Payment,900016202,15.00,
BEIS,The Insolvency Service,30/09/2020,Travel & Subsistence,Digital Technology Services,Staff Payment,900016202,5.00,
BEIS,The Insolvency Service,30/09/2020,Travel & Subsistence,Digital Technology Services,Staff Payment,900016202,143.10,
BEIS,The Insolvency Service,30/09/2020,Travel & Subsistence,Investigations & Enforcement Services,Staff Payment,900016212,9.90,
BEIS,The Insolvency Service,30/09/2020,Travel & Subsistence,Finance & Commercial,Staff Payment,900016164,95.00,
BEIS,The Insolvency Service,30/09/2020,Travel & Subsistence,Official Receiver Services,Staff Payment,900016220,39.15,
BEIS,The Insolvency Service,30/09/2020,Training,Investigations & Enforcement Services,SUNDRY SUPPLIER,300023859,7176.00,
